Body Name,Body,Creditor Name,Spending Service,Nature of Spend,Ledger Date,Reference Number,Goods Amount (excluding VAT)
Lancaster City Council,30UH,A J Exotics,Environmental Services,Materials - General,04/07/2016,34205,3.33
Lancaster City Council,30UH,a love shopping direct,Resources,R & M - Buildings,19/09/2016,ppc000617,154.96
Lancaster City Council,30UH,Ace Safety Wear,Resources,Cleaning Materials,09/09/2016,ppc000606,101.97
Lancaster City Council,30UH,ACS Bussiness Supplies,Resources,ICT - Hardware,19/09/2016,jpc000867,1388.56
Lancaster City Council,30UH,Adobe,Resources,Miscellaneous Licences,02/09/2016,ppc000584,22.23
Lancaster City Council,30UH,Adobe,Regeneration and Planning,Services - General,04/08/2016,npc001330,14.29
Lancaster City Council,30UH,Adobe,Regeneration and Planning,Services - General,24/08/2016,npc001354,14.29
Lancaster City Council,30UH,Adobe,Regeneration and Planning,Services - General,30/09/2016,npc001401,14.29
Lancaster City Council,30UH,Adobe Systems Software,Resources,Miscellaneous Licences,30/09/2016,ppc000652,18.52
Lancaster City Council,30UH,Ad-Tek Products,Health & Housing,Equipment and Tools - General,12/08/2016,bpc004375,83.9
Lancaster City Council,30UH,AGI Ltd ,Resources,R & M - Buildings,17/08/2016,ppc000557,31.92
Lancaster City Council,30UH,AKW,Health & Housing,Materials (Minor Adaptations),25/08/2016,spc001780,89.56
Lancaster City Council,30UH,AKW,Health & Housing,Materials (Minor Adaptations),21/09/2016,spc001812,89.56
Lancaster City Council,30UH,Aldi Stores,Health & Housing,Children & Young People,28/07/2016,hpc000418,3.57
Lancaster City Council,30UH,Aldi Stores,Health & Housing,Children & Young People,30/08/2016,hpc000425,3.99
Lancaster City Council,30UH,Alliance Online,Environmental Services,Equipment and Tools - General,07/07/2016,34306,327.63
Lancaster City Council,30UH,Alliance Online,Environmental Services,Exhibitions & Events,31/08/2016,34899,88.26
Lancaster City Council,30UH,Alliance Online,Environmental Services,Materials For Resale,31/08/2016,34899,49.84
Lancaster City Council,30UH,Alliance Online,Environmental Services,Materials For Resale,26/08/2016,34816,117.3
Lancaster City Council,30UH,Amazon,Health & Housing,Equipment and Tools - General,23/09/2016,spc001834,8.32
Lancaster City Council,30UH,Amazon,Health & Housing,Tenants Participation,04/07/2016,hpc000408,-11.45
Lancaster City Council,30UH,Amazon,Health & Housing,Tenants Participation,04/07/2016,hpc000409,31.34
Lancaster City Council,30UH,Amazon,Regeneration and Planning,Computer Equipment,15/07/2016,npc001303,8.28
Lancaster City Council,30UH,Amazon,Regeneration and Planning,Computer Equipment,26/08/2016,npc001366,6.67
Lancaster City Council,30UH,Amazon,Health & Housing,Equipment and Tools - General,12/08/2016,bpc004357,200
Lancaster City Council,30UH,Amazon,Health & Housing,Equipment and Tools - General,12/08/2016,bpc004359,-100
Lancaster City Council,30UH,Amazon,Health & Housing,Equipment and Tools - General,12/08/2016,bpc004362,9.28
Lancaster City Council,30UH,Amazon,Health & Housing,Equipment and Tools - General,12/08/2016,bpc004367,12.49
Lancaster City Council,30UH,Amazon,Health & Housing,Equipment and Tools - General,12/08/2016,bpc004368,14.97
Lancaster City Council,30UH,Amazon,Health & Housing,Equipment and Tools - General,12/08/2016,bpc004369,10.49
Lancaster City Council,30UH,Amazon,Health & Housing,Equipment and Tools - General,12/08/2016,bpc004370,4.45
Lancaster City Council,30UH,Amazon,Health & Housing,Equipment and Tools - General,01/09/2016,bpc004434,46.95
Lancaster City Council,30UH,Amazon,Health & Housing,Equipment and Tools - General,01/09/2016,bpc004435,54.18
Lancaster City Council,30UH,Amazon,Health & Housing,Equipment and Tools - General,21/09/2016,spc001814,3.28
Lancaster City Council,30UH,Amazon,Health & Housing,Equipment and Tools - General,21/09/2016,spc001822,1.62
Lancaster City Council,30UH,Amazon,Health & Housing,Equipment and Tools - General,26/09/2016,spc001836,3.25
Lancaster City Council,30UH,Amazon,Health & Housing,Equipment and Tools - General,08/08/2016,bpc004332,19.29
Lancaster City Council,30UH,Amazon,Health & Housing,Equipment and Tools - General,22/08/2016,bpc004405,60.21
Lancaster City Council,30UH,Amazon,Health & Housing,Equipment and Tools - General,01/09/2016,bpc004433,13.74
Lancaster City Council,30UH,Amazon,Environmental Services,Equipment and Tools - General,08/08/2016,34616,19.15
Lancaster City Council,30UH,Amazon,Environmental Services,Equipment and Tools - General,26/09/2016,35215,12.42
Lancaster City Council,30UH,Amazon,Environmental Services,Equipment and Tools - General,28/09/2016,35242,23.1
Lancaster City Council,30UH,Amazon,Health & Housing,Equipment and Tools - General,26/07/2016,spc001727,17.98
Lancaster City Council,30UH,Amazon,Health & Housing,Equipment and Tools - General,02/08/2016,spc001753,2.82
Lancaster City Council,30UH,Amazon,Health & Housing,Equipment and Tools - General,30/08/2016,spc001788,17.63
Lancaster City Council,30UH,Amazon,Health & Housing,Equipment and Tools - General,30/08/2016,spc001789,27.33
Lancaster City Council,30UH,Amazon,Health & Housing,Equipment and Tools - General,29/09/2016,spc001845,21.75
Lancaster City Council,30UH,Amazon,Environmental Services,Equipment and Tools - General,01/09/2016,34908,23.73
Lancaster City Council,30UH,Amazon,Environmental Services,Equipment and Tools - General,01/09/2016,34916,24.74
Lancaster City Council,30UH,Amazon,Resources,Infrastructure - Update & Maintenance,28/07/2016,jpc000812,12.62
Lancaster City Council,30UH,Amazon,Resources,Infrastructure - Update & Maintenance,28/07/2016,jpc000813,6.02
Lancaster City Council,30UH,Amazon,Resources,Infrastructure - Update & Maintenance,28/07/2016,jpc000814,11.17
Lancaster City Council,30UH,Amazon,Resources,Infrastructure - Update & Maintenance,28/07/2016,jpc000815,333.17
Lancaster City Council,30UH,Amazon,Resources,Infrastructure - Update & Maintenance,28/07/2016,jpc000816,23.32
Lancaster City Council,30UH,Amazon,Health & Housing,Materials - General,12/08/2016,bpc004363,2.06
Lancaster City Council,30UH,Amazon,Health & Housing,Materials - General,12/08/2016,bpc004365,1.96
Lancaster City Council,30UH,Amazon,Health & Housing,Materials - General,12/08/2016,bpc004366,7.48
Lancaster City Council,30UH,Amazon,Health & Housing,Materials - General,01/08/2016,spc001743,1.62
Lancaster City Council,30UH,Amazon,Health & Housing,Materials - General,01/08/2016,spc001745,4.97
Lancaster City Council,30UH,Amazon,Health & Housing,Materials - General,01/08/2016,spc001746,3.32
Lancaster City Council,30UH,Amazon,Environmental Services,Materials - General,17/08/2016,34737,27.9
Lancaster City Council,30UH,Amazon,Environmental Services,Materials - General,31/08/2016,34892,6.8
Lancaster City Council,30UH,Amazon,Health & Housing,Materials - General,01/08/2016,spc001742,28.71
Lancaster City Council,30UH,Amazon,Health & Housing,Materials - General,25/08/2016,spc001779,12.49
Lancaster City Council,30UH,Amazon,Health & Housing,Miscellaneous Expenditure,01/08/2016,spc001739,6.32
Lancaster City Council,30UH,Amazon,Health & Housing,Miscellaneous Expenditure,21/09/2016,spc001813,2.44
Lancaster City Council,30UH,Amazon,Health & Housing,Mobile Telephones,15/07/2016,spc001713,3.98
Lancaster City Council,30UH,Amazon,Resources,Mobile Telephones,01/09/2016,jpc000838,128.42
Lancaster City Council,30UH,Amazon,Resources,Mobile Telephones,01/09/2016,jpc000841,99.06
Lancaster City Council,30UH,Amazon,Resources,Mobile Telephones,01/09/2016,jpc000842,99.06
Lancaster City Council,30UH,Amazon,Resources,Mobile Telephones,01/09/2016,jpc000843,99.06
Lancaster City Council,30UH,Amazon,Environmental Services,Mobile Telephones,01/09/2016,34913,8.32
Lancaster City Council,30UH,Amazon,Regeneration and Planning,Office Equipment,14/09/2016,35099,38.92
Lancaster City Council,30UH,Amazon,Regeneration and Planning,Photographic Materials,01/08/2016,34530,139.97
Lancaster City Council,30UH,Amazon,Health & Housing,Printing & Stationery,12/08/2016,bpc004364,1.74
Lancaster City Council,30UH,Amazon,Health & Housing,Printing & Stationery,16/08/2016,bpc004382,1.98
Lancaster City Council,30UH,Amazon,Health & Housing,Printing & Stationery,16/08/2016,bpc004383,4.19
Lancaster City Council,30UH,Amazon,Environmental Services,Printing & Stationery,08/08/2016,34615,29.03
Lancaster City Council,30UH,Amazon,Health & Housing,Printing & Stationery,03/08/2016,hpc000422,19.79
Lancaster City Council,30UH,Amazon,Health & Housing,Printing & Stationery,30/08/2016,hpc000427,45.99
Lancaster City Council,30UH,Amazon,Health & Housing,Printing & Stationery,30/08/2016,hpc000428,10.12
Lancaster City Council,30UH,Amazon,Resources,Purchase Of Equipment,28/07/2016,jpc000811,701.66
Lancaster City Council,30UH,Amazon,Resources,Purchase Of Equipment,01/09/2016,jpc000839,8.21
Lancaster City Council,30UH,Amazon,Resources,Purchase Of Equipment,01/09/2016,jpc000840,198.12
Lancaster City Council,30UH,Amazon,Resources,Purchase Of Equipment,01/09/2016,jpc000844,20.33
Lancaster City Council,30UH,Amazon,Resources,Purchase Of Equipment,01/09/2016,jpc000845,566.62
Lancaster City Council,30UH,Amazon,Resources,Purchase Of Equipment,01/09/2016,jpc000847,270.82
Lancaster City Council,30UH,Amazon,Resources,Purchase Of Equipment,01/09/2016,jpc000848,10
Lancaster City Council,30UH,Amazon,Resources,Purchase Of Equipment,01/09/2016,jpc000849,3.32
Lancaster City Council,30UH,Amazon,Resources,Purchase Of Equipment,01/09/2016,jpc000865,385.25
Lancaster City Council,30UH,Amazon,Resources,Purchase Of Equipment,30/09/2016,jpc000868,324.75
Lancaster City Council,30UH,Amazon,Resources,Purchase Of Equipment,30/09/2016,jpc000869,41.5
Lancaster City Council,30UH,Amazon,Resources,Purchase Of Equipment,30/09/2016,jpc000870,35.25
Lancaster City Council,30UH,Amazon,Resources,Purchase Of Equipment,30/09/2016,jpc000873,33.31
Lancaster City Council,30UH,Amazon,Resources,Sundry Expenses,13/09/2016,ppc000609,40
Lancaster City Council,30UH,Amazon,Health & Housing,Equipment Funded by Reserves,30/08/2016,hpc000429,8.04
Lancaster City Council,30UH,Amazon,Environmental Services,Mobile Telephones,20/07/2016,34388,9.99
Lancaster City Council,30UH,Amazon,Environmental Services,Materials - General,01/07/2016,34167,20.04
Lancaster City Council,30UH,Amazon,Environmental Services,Mobile Telephones,08/07/2016,34316,15.96
Lancaster City Council,30UH,Amazon,Governance,IT Consumables,27/07/2016,dpc000426,33.96
Lancaster City Council,30UH,Amazon,Governance,IT Consumables,20/07/2016,dpc000425,38.33
Lancaster City Council,30UH,Amazon,Governance,Corporate Initiatives,23/09/2016,lpc000412,64.92
Lancaster City Council,30UH,Amazon,Environmental Services,Materials - General,22/09/2016,35168,20.7
Lancaster City Council,30UH,Amazon,Resources,Cleaning Materials,19/09/2016,ppc000618,20.62
Lancaster City Council,30UH,Amazon,Environmental Services,Clothing & Uniforms,06/07/2016,34258,13.98
Lancaster City Council,30UH,Amazon,Health & Housing,Mobile Telephones,23/08/2016,spc001776,3.94
Lancaster City Council,30UH,Amazon,Environmental Services,Office Equipment,21/07/2016,34399,49.96
Lancaster City Council,30UH,Amazon,Environmental Services,Materials - General,01/07/2016,34169,55.2
Lancaster City Council,30UH,Amazon,Health & Housing,Equipment Funded by Reserves,03/08/2016,hpc000420,33.08
Lancaster City Council,30UH,Amazon,Health & Housing,Equipment and Tools - General,27/07/2016,bpc004305,40.41
Lancaster City Council,30UH,Amazon,Health & Housing,Equipment and Tools - General,18/08/2016,bpc004400,43.95
Lancaster City Council,30UH,Amazon,Health & Housing,Equipment and Tools - General,02/09/2016,bpc004436,124.77
Lancaster City Council,30UH,Amazon,Health & Housing,Equipment and Tools - General,02/09/2016,bpc004438,38.8
Lancaster City Council,30UH,Amazon,Health & Housing,Equipment and Tools - General,21/09/2016,bpc004478,13.98
Lancaster City Council,30UH,Amazon,Resources,Equipment and Tools - General,30/09/2016,ppc000654,124.99
Lancaster City Council,30UH,Amazon,Resources,Equipment and Tools - General,30/09/2016,ppc000655,13.54
Lancaster City Council,30UH,Amazon,Health & Housing,Equipment and Tools - General,11/08/2016,bpc004354,91.69
Lancaster City Council,30UH,Amazon,Health & Housing,Materials - General,24/07/2016,bpc004265,10.79
Lancaster City Council,30UH,Amazon,Health & Housing,Materials - General,24/07/2016,bpc004266,23.1
Lancaster City Council,30UH,Amazon,Health & Housing,Materials - General,24/07/2016,bpc004268,82.64
Lancaster City Council,30UH,Amazon,Health & Housing,Materials - General,30/09/2016,bpc004506,8.32
Lancaster City Council,30UH,Amazon,Resources,Materials For Resale,30/09/2016,ppc000653,42.5
Lancaster City Council,30UH,Amazon,Health & Housing,Printing & Stationery,24/07/2016,bpc004264,10.5
Lancaster City Council,30UH,Amazon,Health & Housing,Printing & Stationery,24/07/2016,bpc004269,31.34
Lancaster City Council,30UH,Amazon,Health & Housing,Printing & Stationery,24/07/2016,bpc004270,13
Lancaster City Council,30UH,Amazon,Health & Housing,Printing & Stationery,24/07/2016,bpc004271,15.25
Lancaster City Council,30UH,Amazon,Health & Housing,Printing & Stationery,29/07/2016,bpc004307,13.89
Lancaster City Council,30UH,Amazon,Health & Housing,Printing & Stationery,01/08/2016,bpc004316,11.63
Lancaster City Council,30UH,Amazon,Health & Housing,Printing & Stationery,25/08/2016,bpc004413,48.11
Lancaster City Council,30UH,Amazon,Health & Housing,Printing & Stationery,25/08/2016,bpc004414,8.85
Lancaster City Council,30UH,Amazon,Health & Housing,Printing & Stationery,12/09/2016,bpc004448,32.71
Lancaster City Council,30UH,Amazon,Health & Housing,Printing & Stationery,16/09/2016,bpc004464,23.97
Lancaster City Council,30UH,Amazon,Health & Housing,Printing & Stationery,26/07/2016,bpc004298,2.49
Lancaster City Council,30UH,Amazon,Health & Housing,Printing & Stationery,26/07/2016,bpc004300,30.2
Lancaster City Council,30UH,Amazon,Health & Housing,Printing & Stationery,27/07/2016,bpc004303,21.13
Lancaster City Council,30UH,AnatomyStuff,Health & Housing,Equipment and Tools - General,22/08/2016,bpc004406,517.8
Lancaster City Council,30UH,Andrews water treatment,Regeneration and Planning,R & M - Buildings (Within Service),01/08/2016,npc001323,24.96
Lancaster City Council,30UH,ANIMAL PLANET,Environmental Services,Materials - General,07/07/2016,34311,19.99
Lancaster City Council,30UH,Apple ,Resources,Computer Equipment,01/09/2016,jpc000860,207.5
Lancaster City Council,30UH,Apple Taxis Exeter,Health & Housing,Use Of Public Tpt - Officers,07/09/2016,spc001799,16.8
Lancaster City Council,30UH,Apple UK,Health & Housing,Printing & Stationery,19/08/2016,bpc004401,12.5
Lancaster City Council,30UH,Appliance Direct,Health & Housing,Equipment and Tools - General,28/07/2016,spc001728,15
Lancaster City Council,30UH,Appliance Direct,Health & Housing,Equipment Funded by Reserves,30/08/2016,hpc000426,162.49
Lancaster City Council,30UH,Appliance Direct,Health & Housing,Equipment and Tools - General,22/07/2016,spc001723,154.16
Lancaster City Council,30UH,Appliance Direct,Resources,R & M - Buildings,04/07/2016,ppc000529,0.01
Lancaster City Council,30UH,Appliance Direct,Health & Housing,Equipment Funded by Reserves,26/09/2016,hpc000434,158.32
Lancaster City Council,30UH,Aquatronic Group Management,Health & Housing,Other Fixed Plant,26/07/2016,bpc004295,345.85
Lancaster City Council,30UH,Argos,Regeneration and Planning,Computer Equipment,26/08/2016,npc001361,83.32
Lancaster City Council,30UH,Argos,Resources,Equipment and Tools - General,30/08/2016,ppc000565,14.99
Lancaster City Council,30UH,Argos,Health & Housing,Homelessness Priority Need Order,09/08/2016,spc001759,11.96
Lancaster City Council,30UH,Argos,Health & Housing,R & M - Environmental Works,04/07/2016,hpc000410,37.48
Lancaster City Council,30UH,ASA,Health & Housing,Materials For Resale,29/07/2016,bpc004309,42.9
Lancaster City Council,30UH,ASA ,Health & Housing,Printing & Stationery,30/09/2016,bpc004495,483.32
Lancaster City Council,30UH,ASDA,Health & Housing,Equipment and Tools - General,18/07/2016,bpc004256,2.95
Lancaster City Council,30UH,ASDA,Health & Housing,Equipment and Tools - General,18/07/2016,bpc004257,4.17
Lancaster City Council,30UH,ASDA,Health & Housing,Equipment and Tools - General,15/08/2016,bpc004376,30.83
Lancaster City Council,30UH,ASDA,Health & Housing,Equipment and Tools - General,11/09/2016,bpc004447,38.88
Lancaster City Council,30UH,ASDA,Health & Housing,Long Service Awards,23/08/2016,hpc000423,123.33
Lancaster City Council,30UH,ASDA,Health & Housing,Materials - General,27/07/2016,bpc004304,6.05
Lancaster City Council,30UH,ASDA,Health & Housing,Materials For Resale,11/09/2016,bpc004446,10.16
Lancaster City Council,30UH,ASDA,Health & Housing,Materials For Resale,28/07/2016,bpc004306,4.56
Lancaster City Council,30UH,ASDA,Health & Housing,Materials For Resale,18/07/2016,bpc004255,32.06
Lancaster City Council,30UH,ASDA,Health & Housing,Petrol & Derv,18/08/2016,bpc004395,12.82
Lancaster City Council,30UH,ASDA,Health & Housing,Materials - General,29/09/2016,bpc004493,10
Lancaster City Council,30UH,Atkinsons,Environmental Services,Equipment and Tools - General,23/09/2016,35198,24.31
Lancaster City Council,30UH,Atkinsons,Resources,Equipment and Tools - General,02/09/2016,ppc000592,720.49
Lancaster City Council,30UH,Atkinsons,Environmental Services,Materials For Resale,04/07/2016,34210,425.64
Lancaster City Council,30UH,Atkinsons,Environmental Services,Materials For Resale,07/07/2016,34291,661.68
Lancaster City Council,30UH,Atkinsons,Environmental Services,Materials For Resale,31/08/2016,34862,754.86
Lancaster City Council,30UH,Atkinsons,Environmental Services,Materials For Resale,23/09/2016,35198,708.1
Lancaster City Council,30UH,Audiologic,Health & Housing,Equipment and Tools - General,09/08/2016,bpc004341,1148.45
Lancaster City Council,30UH,Aura Online Ltd,Health & Housing,Equipment and Tools - General,19/09/2016,bpc004468,149.95
Lancaster City Council,30UH,Aura Online Ltd,Health & Housing,Equipment and Tools - General,26/07/2016,bpc004289,425.95
Lancaster City Council,30UH,AV Parls Master,Resources,Purchase Of Equipment,28/07/2016,jpc000819,1397
Lancaster City Council,30UH,AVPARTSMASTER LAMP,Environmental Services,Office Equipment,22/07/2016,34404,64
Lancaster City Council,30UH,B and M Baragains,Health & Housing,Equipment and Tools - General,25/07/2016,bpc004277,15.39
Lancaster City Council,30UH,B&Q,Resources,Clothing & Uniforms,19/07/2016,ppc000539,6.5
Lancaster City Council,30UH,B&Q,Resources,Equipment and Tools - General,13/09/2016,ppc000610,4.98
Lancaster City Council,30UH,Baker Ross,Health & Housing,Services - General,04/07/2016,bpc004246,127.16
Lancaster City Council,30UH,Ballicom,Resources,Fixtures & Fittings - General,28/07/2016,jpc000832,81.5
Lancaster City Council,30UH,Ballicom,Resources,Mobile Telephones,28/07/2016,jpc000825,123.2
Lancaster City Council,30UH,BASISi,Health & Housing,Equipment and Tools - General,11/07/2016,spc001707,90
Lancaster City Council,30UH,Battery Force,Health & Housing,Equipment and Tools - General,18/08/2016,bpc004393,24.99
Lancaster City Council,30UH,Bay Travel,Health & Housing,Use Of Public Tpt - Officers,29/07/2016,spc001734,441.6
Lancaster City Council,30UH,Bay Travel,Health & Housing,Use Of Public Tpt - Officers,07/09/2016,spc001801,724.51
Lancaster City Council,30UH,Bay Vets Ltd,Environmental Services,Services - Vets,04/07/2016,34215,19.27
Lancaster City Council,30UH,Bay Vets Ltd,Environmental Services,Services - Vets,07/07/2016,34295,57.37
Lancaster City Council,30UH,Bay Vets Ltd,Health & Housing,Services - Vets,21/09/2016,bpc004483,19.27
Lancaster City Council,30UH,Best4Systems,Resources,Telephones (Internal),13/09/2016,rpc000092,50
Lancaster City Council,30UH,Blacks,Resources,Clothing & Uniforms,06/09/2016,ppc000597,20
Lancaster City Council,30UH,Blacks,Regeneration and Planning,Equipment and Tools - General,09/08/2016,npc001335,28.32
Lancaster City Council,30UH,BLT Direct,Resources,R & M - Buildings,30/08/2016,ppc000562,80.92
Lancaster City Council,30UH,BLT Direct,Resources,R & M - Buildings,15/08/2016,ppc000554,20.71
Lancaster City Council,30UH,BLT Direct,Resources,R & M - Buildings,19/07/2016,ppc000541,90.9
Lancaster City Council,30UH,Blue Cross,Health & Housing,Service Training Budget,04/08/2016,spc001755,25
Lancaster City Council,30UH,BMC Digital Ltd,Environmental Services,Mobile Telephones,31/08/2016,34889,4.96
Lancaster City Council,30UH,Boards Direct.co.uk,Health & Housing,Printing & Stationery,26/07/2016,bpc004291,27.99
Lancaster City Council,30UH,Booker,Health & Housing,Materials For Resale,08/08/2016,bpc004336,61.91
Lancaster City Council,30UH,Booker,Health & Housing,Materials For Resale,12/08/2016,bpc004372,128.27
Lancaster City Council,30UH,Booker,Health & Housing,Materials For Resale,13/09/2016,bpc004459,2.99
Lancaster City Council,30UH,Booker,Environmental Services,Materials For Resale,04/07/2016,34237,640.38
Lancaster City Council,30UH,Booker,Environmental Services,Materials For Resale,08/08/2016,34618,1387.75
Lancaster City Council,30UH,Booker,Environmental Services,Materials For Resale,31/08/2016,34866,982.22
Lancaster City Council,30UH,Booker,Environmental Services,Materials For Resale,31/08/2016,34876,344.43
Lancaster City Council,30UH,Booker,Environmental Services,Materials For Resale,31/08/2016,34891,1275.1
Lancaster City Council,30UH,Booker,Environmental Services,Materials For Resale,23/09/2016,35206,49.82
Lancaster City Council,30UH,Booker,Environmental Services,Materials For Resale,29/09/2016,35279,658.7
Lancaster City Council,30UH,Booker,Health & Housing,Materials - General,28/09/2016,bpc004490,3.78
Lancaster City Council,30UH,Booker,Resources,Catering Provisions,29/07/2016,ppc000545,248.98
Lancaster City Council,30UH,Booker,Regeneration and Planning,Bar Supplies,07/07/2016,npc001299,89.77
Lancaster City Council,30UH,Booker,Resources,Materials For Resale,22/09/2016,ppc000626,361.53
Lancaster City Council,30UH,Booker,Resources,Materials For Resale,30/09/2016,ppc000651,100.71
Lancaster City Council,30UH,Booker,Resources,Materials For Resale,30/09/2016,ppc000656,253.97
Lancaster City Council,30UH,Booker,Regeneration and Planning,Bar Supplies,26/07/2016,npc001317,57.51
Lancaster City Council,30UH,Booker,Regeneration and Planning,Bar Supplies,01/09/2016,npc001375,135.46
Lancaster City Council,30UH,Booker,Health & Housing,Materials - General,09/08/2016,bpc004343,56.98
Lancaster City Council,30UH,Booker,Health & Housing,Materials For Resale,25/07/2016,bpc004274,141.41
Lancaster City Council,30UH,Booker,Health & Housing,Materials For Resale,04/07/2016,bpc004249,35.46
Lancaster City Council,30UH,Booker,Health & Housing,Materials For Resale,24/07/2016,bpc004273,164.83
Lancaster City Council,30UH,Booker,Health & Housing,Materials For Resale,29/07/2016,bpc004308,7.79
Lancaster City Council,30UH,Booker,Health & Housing,Materials For Resale,09/08/2016,bpc004343,211.19
Lancaster City Council,30UH,Booker,Health & Housing,Materials For Resale,12/08/2016,bpc004361,169.57
Lancaster City Council,30UH,Booker,Health & Housing,Materials For Resale,24/08/2016,bpc004409,99.34
Lancaster City Council,30UH,Booker,Health & Housing,Materials For Resale,31/08/2016,bpc004429,0.2
Lancaster City Council,30UH,Booker,Health & Housing,Materials For Resale,05/09/2016,bpc004443,7.79
Lancaster City Council,30UH,Booker,Health & Housing,Materials For Resale,28/09/2016,bpc004491,125.77
Lancaster City Council,30UH,Booker,Health & Housing,Materials For Resale,30/09/2016,bpc004503,317.16
Lancaster City Council,30UH,Booker,Health & Housing,Services - General,14/07/2016,bpc004252,93.41
Lancaster City Council,30UH,Booker,Health & Housing,Services - General,21/07/2016,bpc004262,64.59
Lancaster City Council,30UH,Booker,Health & Housing,Vending Machine Supplies,09/08/2016,bpc004339,268.28
Lancaster City Council,30UH,Booker,Health & Housing,Materials For Resale,15/08/2016,bpc004379,92.01
Lancaster City Council,30UH,Booker,Health & Housing,System Suspense Account    018,15/08/2016,bpc004380,107.83
Lancaster City Council,30UH,Booker,Resources,Catering Provisions,12/07/2016,ppc000533,500.53
Lancaster City Council,30UH,Booker,Regeneration and Planning,Bar Supplies,16/08/2016,npc001340,92.89
Lancaster City Council,30UH,Booker,Regeneration and Planning,Bar Supplies,16/08/2016,npc001341,30.04
Lancaster City Council,30UH,Booker,Regeneration and Planning,Bar Supplies,25/08/2016,npc001358,52.24
Lancaster City Council,30UH,Booths,Regeneration and Planning,AONB Executive Support,06/07/2016,npc001294,1.14
Lancaster City Council,30UH,Booths,Regeneration and Planning,AONB Executive Support,06/07/2016,npc001296,8.13
Lancaster City Council,30UH,Booths,Regeneration and Planning,Other Cleaning,06/07/2016,npc001294,3.33
Lancaster City Council,30UH,Booths,Regeneration and Planning,Printing & Stationery,06/07/2016,npc001294,2.99
Lancaster City Council,30UH,Booths,Regeneration and Planning,Other Cleaning,31/08/2016,npc001372,6.5
Lancaster City Council,30UH,BP Bowling Green,Environmental Services,Fuel Oil,31/08/2016,34865,53.08
Lancaster City Council,30UH,BP Bowling Green,Environmental Services,Fuel Oil,28/09/2016,35227,53.41
Lancaster City Council,30UH,Bradley Environmental Consultants Limited,Environmental Services,Service Training Budget,05/07/2016,34256,885.24
Lancaster City Council,30UH,Brewers,Health & Housing,Materials (Minor Adaptations),01/08/2016,spc001748,71.12
Lancaster City Council,30UH,Brewers Decorator Centres,Health & Housing,Equipment and Tools - General,12/09/2016,bpc004455,43.56
Lancaster City Council,30UH,bridge house marina and carava,Health & Housing,Capital Grants,01/08/2016,spc001744,506.25
Lancaster City Council,30UH,Briggs Shoes,Health & Housing,Clothing & Uniforms,30/09/2016,bpc004496,41.62
Lancaster City Council,30UH,British Gymnastics,Health & Housing,Materials For Resale,08/08/2016,bpc004334,332.06
Lancaster City Council,30UH,British Gymnastics,Health & Housing,Printing & Stationery,13/09/2016,bpc004462,208.59
Lancaster City Council,30UH,British Telecommunications plc,Health & Housing,Telephones,11/08/2016,bpc004352,55.89
Lancaster City Council,30UH,BSI STANDARDS LTD,Environmental Services,Materials - General,01/09/2016,34912,47
Lancaster City Council,30UH,BT,Health & Housing,Telephones,08/08/2016,bpc004325,85.48
Lancaster City Council,30UH,BT,Regeneration and Planning,Telephones,25/07/2016,npc001315,101.5
Lancaster City Council,30UH,BT,Regeneration and Planning,Telephones,17/08/2016,npc001342,311.78
Lancaster City Council,30UH,BT Openreach,Environmental Services,Capital Payments To Contractors,22/09/2016,35169,420.8
Lancaster City Council,30UH,budgetplaces.com,Health & Housing,Subsistence,10/08/2016,spc001768,187
Lancaster City Council,30UH,budgetplaces.com,Health & Housing,System Suspense Account    018,21/07/2016,spc001751,-5.79
Lancaster City Council,30UH,Bulloughs,Regeneration and Planning,Exhibitions & Events,26/09/2016,npc001395,11.4
Lancaster City Council,30UH,Burnley Borough Council,Regeneration and Planning,Marketing,15/07/2016,npc001304,40
Lancaster City Council,30UH,Burnley Borough Council,Regeneration and Planning,Marketing,15/08/2016,npc001338,1983.95
Lancaster City Council,30UH,Burnley Borough Council,Health & Housing,Printing & Stationery,26/07/2016,bpc004286,2985
Lancaster City Council,30UH,C & H Products,Health & Housing,Equipment and Tools - General,19/08/2016,bpc004402,201.8
Lancaster City Council,30UH,C & H Products,Health & Housing,Equipment and Tools - General,19/08/2016,bpc004403,78
Lancaster City Council,30UH,Cairndale labelling Systems,Regeneration and Planning,Printing & Stationery,05/07/2016,34245,173.25
Lancaster City Council,30UH,Cambrook Fine Art,Regeneration and Planning,Materials For Resale,05/07/2016,34247,53.7
Lancaster City Council,30UH,Carnegie Publishing Ltd,Regeneration and Planning,Materials For Resale,22/08/2016,34770,98.12
Lancaster City Council,30UH,Centrum Elektroniki,Resources,Fixtures & Fittings - General,31/08/2016,ppc000568,104.75
Lancaster City Council,30UH,CGB,Regeneration and Planning,Materials For Resale,22/07/2016,34407,122.48
Lancaster City Council,30UH,Chubb Fire and Security Ltd ,Environmental Services,Contract Maintenance,07/07/2016,34296,377.47
Lancaster City Council,30UH,CIEH,Health & Housing,Equipment and Tools - General,29/07/2016,spc001732,23
Lancaster City Council,30UH,Cipfa,Resources,Conferences & Seminars,06/09/2016,fpc000193,60
Lancaster City Council,30UH,City Electrical Factors,Health & Housing,Equipment and Tools - General,10/08/2016,bpc004347,33.4
Lancaster City Council,30UH,CJ Papers,Regeneration and Planning,Printing & Stationery,01/08/2016,34684,7.2
Lancaster City Council,30UH,CKB Ltd Herftforshire,Health & Housing,Equipment and Tools - General,18/08/2016,bpc004389,16.25
Lancaster City Council,30UH,Classic Engraving,Regeneration and Planning,R & M - Sea & River / Promenade,04/07/2016,npc001316,35
Lancaster City Council,30UH,Classic Engravings,Regeneration and Planning,R & M - General,04/07/2016,npc001289,37.5
Lancaster City Council,30UH,Clubbercise,Health & Housing,Materials For Resale,08/08/2016,bpc004328,197.49
Lancaster City Council,30UH,Coffee Soulutions,Regeneration and Planning,Services - General,13/09/2016,npc001387,305
Lancaster City Council,30UH,Coles hardware,Health & Housing,Materials (Minor Adaptations),29/07/2016,spc001730,75.75
Lancaster City Council,30UH,Coles Hardware,Health & Housing,Materials (Minor Adaptations),14/07/2016,spc001712,66.67
Lancaster City Council,30UH,Coles Hardware,Health & Housing,Materials (Minor Adaptations),14/07/2016,spc001717,66.67
Lancaster City Council,30UH,Comms Express,Resources,Infrastructure - Update & Maintenance,05/07/2016,jpc000810,-136
Lancaster City Council,30UH,Complete Care Shop,Regeneration and Planning,Office Equipment,09/09/2016,npc001383,53.45
Lancaster City Council,30UH,Cooleasy,Health & Housing,R & M - Buildings,26/07/2016,bpc004302,366.62
Lancaster City Council,30UH,coop,Health & Housing,Materials - General,04/07/2016,spc001695,39.67
Lancaster City Council,30UH,Cordee,Regeneration and Planning,Materials For Resale,05/07/2016,34249,62.32
Lancaster City Council,30UH,Cordee,Regeneration and Planning,Materials For Resale,13/09/2016,35090,62.32
Lancaster City Council,30UH,Cordee,Regeneration and Planning,Materials For Resale,14/09/2016,35101,181.78
Lancaster City Council,30UH,Cornerstone Barristers,Governance,Service Training Budget,27/07/2016,lpc000401,80
Lancaster City Council,30UH,Cornthwaites,Environmental Services,Repair & Mtce Of Vehicles,28/09/2016,35230,808.67
Lancaster City Council,30UH,Correct Flow,Health & Housing,Chemicals,12/08/2016,bpc004373,413.41
Lancaster City Council,30UH,Correct Flow,Health & Housing,Other Fixed Plant,13/09/2016,bpc004461,45
Lancaster City Council,30UH,Countrystyle Meats,Environmental Services,Materials For Resale,04/07/2016,34238,594.2
Lancaster City Council,30UH,Countrystyle Meats,Environmental Services,Materials For Resale,31/08/2016,34877,1986.13
Lancaster City Council,30UH,CPC,Regeneration and Planning,Equipment and Tools - General,02/09/2016,npc001376,181.46
Lancaster City Council,30UH,CPC,Regeneration and Planning,Equipment and Tools - General,02/09/2016,npc001377,21.64
Lancaster City Council,30UH,CPC,Regeneration and Planning,Equipment and Tools - General,20/09/2016,npc001389,167.06
Lancaster City Council,30UH,CPC,Resources,Infrastructure - Update & Maintenance,01/09/2016,jpc000853,45.94
Lancaster City Council,30UH,Createsend.com,Regeneration and Planning,Marketing,31/08/2016,npc001373,20.47
Lancaster City Council,30UH,Createsend.com,Regeneration and Planning,Marketing,08/09/2016,npc001382,20.41
Lancaster City Council,30UH,Createsend.com,Regeneration and Planning,Marketing,06/07/2016,npc001295,20.17
Lancaster City Council,30UH,Crux Adventure,Health & Housing,Equipment and Tools - General,26/08/2016,bpc004416,16.58
Lancaster City Council,30UH,CS Catering,Resources,Equipment and Tools - General,15/09/2016,ppc000649,645.69
Lancaster City Council,30UH,CS Catering,Resources,Equipment and Tools - General,31/08/2016,ppc000567,2636
Lancaster City Council,30UH,CT Hayton,Regeneration and Planning,Equipment and Tools - General,17/08/2016,npc001343,13.2
Lancaster City Council,30UH,David Willan,Environmental Services,Materials For Resale,07/07/2016,34301,905.86
Lancaster City Council,30UH,David Willan,Environmental Services,Materials For Resale,31/08/2016,34868,897.17
Lancaster City Council,30UH,David Willan,Environmental Services,Materials For Resale,23/09/2016,35196,1066.64
Lancaster City Council,30UH,DVLA,Environmental Services,Vehicle Licences,12/07/2016,34325,232.5
Lancaster City Council,30UH,Debnehams Plus,Resources,Fixtures & Fittings - General,28/07/2016,jpc000824,1222.5
Lancaster City Council,30UH,Deezer,Health & Housing,Miscellaneous Licences,30/09/2016,bpc004498,9.99
Lancaster City Council,30UH,DELL,Resources,Purchase Of Equipment,01/09/2016,jpc000863,994.6
Lancaster City Council,30UH,Deltawaite,Regeneration and Planning,Clothing & Uniforms,03/08/2016,npc001350,36.02
Lancaster City Council,30UH,Dennis Barnfield,Environmental Services,Equipment and Tools - General,26/08/2016,34821,6
Lancaster City Council,30UH,Dennis Barnfield,Environmental Services,Repair & Mtce Of Vehicles,26/08/2016,34821,108.51
Lancaster City Council,30UH,Dennis Barnfield,Health & Housing,Equipment and Tools - General,21/09/2016,bpc004481,110.57
Lancaster City Council,30UH,Dennis Barnfield,Environmental Services,Equipment and Tools - General,31/08/2016,34864,21.78
Lancaster City Council,30UH,Dennis Barnfield,Environmental Services,Equipment and Tools - General,29/09/2016,35266,590
Lancaster City Council,30UH,Destiny Entertainment LTd,Health & Housing,Equipment and Tools - General,02/08/2016,bpc004317,87.34
Lancaster City Council,30UH,Direct 365 Services,Health & Housing,Equipment and Tools - General,26/07/2016,bpc004297,116.75
Lancaster City Council,30UH,Direct 365 Supplies,Health & Housing,Equipment and Tools - General,26/07/2016,bpc004296,116.75
Lancaster City Council,30UH,Direct Parts Supply Ltd,Health & Housing,Equipment and Tools - General,08/08/2016,bpc004331,50.5
Lancaster City Council,30UH,Direct Parts Supply Ltd,Health & Housing,Equipment and Tools - General,08/08/2016,bpc004329,15.5
Lancaster City Council,30UH,Direct Parts Supply Ltd,Health & Housing,Equipment and Tools - General,26/07/2016,bpc004290,360.14
Lancaster City Council,30UH,Disclosure Scotland,Governance,Infrastructure - Update & Maintenance,06/09/2016,lpc000406,25
Lancaster City Council,30UH,Disclosure Scotland,Governance,Infrastructure - Update & Maintenance,30/09/2016,lpc000413,25
Lancaster City Council,30UH,Disclosure Scotland,Governance,Security Services,04/07/2016,lpc000393,25
Lancaster City Council,30UH,DISPLAY WIZARD,Environmental Services,Miscellaneous Expenditure,01/09/2016,34910,112.5
Lancaster City Council,30UH,Duigital Direct Security,Health & Housing,Equipment and Tools - General,28/07/2016,spc001729,118
Lancaster City Council,30UH,Dunelm,Health & Housing,Equipment and Tools - General,31/08/2016,bpc004428,29.99
Lancaster City Council,30UH,DUNELM SOFT FURNISHINGS LTD,Environmental Services,Other Construction Costs,01/09/2016,34907,31.98
Lancaster City Council,30UH,Dvla,Environmental Services,Materials - General,05/07/2016,34252,40
Lancaster City Council,30UH,Dvla,Environmental Services,Vehicle Licences,06/07/2016,34261,232.5
Lancaster City Council,30UH,Dvla,Environmental Services,Vehicle Licences,06/07/2016,34262,232.5
Lancaster City Council,30UH,Dvla,Environmental Services,Vehicle Licences,06/07/2016,34263,232.5
Lancaster City Council,30UH,Dvla,Environmental Services,Vehicle Licences,06/07/2016,34264,232.5
Lancaster City Council,30UH,Dvla,Environmental Services,Vehicle Licences,06/07/2016,34265,232.5
Lancaster City Council,30UH,Dvla,Environmental Services,Vehicle Licences,06/07/2016,34266,232.5
Lancaster City Council,30UH,Dvla,Environmental Services,Vehicle Licences,06/07/2016,34267,232.5
Lancaster City Council,30UH,Dvla,Environmental Services,Vehicle Licences,06/07/2016,34268,232.5
Lancaster City Council,30UH,Dvla,Environmental Services,Vehicle Licences,06/07/2016,34269,232.5
Lancaster City Council,30UH,Dvla,Environmental Services,Vehicle Licences,06/07/2016,34270,232.5
Lancaster City Council,30UH,Dvla,Environmental Services,Vehicle Licences,12/07/2016,34326,232.5
Lancaster City Council,30UH,Dvla,Environmental Services,Vehicle Licences,13/07/2016,34333,232.5
Lancaster City Council,30UH,Dvla,Environmental Services,Vehicle Licences,13/07/2016,34335,232.5
Lancaster City Council,30UH,Dvla,Environmental Services,Vehicle Licences,13/07/2016,34358,232.5
Lancaster City Council,30UH,Dvla,Environmental Services,Vehicle Licences,13/07/2016,34359,232.5
Lancaster City Council,30UH,Dvla,Environmental Services,Vehicle Licences,13/07/2016,34360,232.5
Lancaster City Council,30UH,Dvla,Environmental Services,Vehicle Licences,13/07/2016,34377,232.5
Lancaster City Council,30UH,Dvla,Environmental Services,Vehicle Licences,13/07/2016,34378,232.5
Lancaster City Council,30UH,Dvla,Environmental Services,Vehicle Licences,25/07/2016,34425,232.5
Lancaster City Council,30UH,Dvla,Environmental Services,Vehicle Licences,09/08/2016,34642,167.5
Lancaster City Council,30UH,Dvla,Environmental Services,Vehicle Licences,09/08/2016,34644,167.5
Lancaster City Council,30UH,Dvla,Environmental Services,Vehicle Licences,09/08/2016,34646,652.5
Lancaster City Council,30UH,Dvla,Environmental Services,Vehicle Licences,09/08/2016,34649,167.5
Lancaster City Council,30UH,Dvla,Environmental Services,Vehicle Licences,09/08/2016,34650,167.5
Lancaster City Council,30UH,Dvla,Environmental Services,Vehicle Licences,09/08/2016,34651,167.5
Lancaster City Council,30UH,Dvla,Environmental Services,Vehicle Licences,09/08/2016,34652,232.5
Lancaster City Council,30UH,Dvla,Environmental Services,Vehicle Licences,09/08/2016,34653,232.5
Lancaster City Council,30UH,Dvla,Environmental Services,Vehicle Licences,09/08/2016,34654,232.5
Lancaster City Council,30UH,Dvla,Environmental Services,Vehicle Licences,09/08/2016,34655,232.5
Lancaster City Council,30UH,Dvla,Environmental Services,Vehicle Licences,09/08/2016,34656,232.5
Lancaster City Council,30UH,Dvla,Environmental Services,Vehicle Licences,09/08/2016,34657,232.5
Lancaster City Council,30UH,Dvla,Environmental Services,Vehicle Licences,09/08/2016,34658,232.5
Lancaster City Council,30UH,Dvla,Environmental Services,Vehicle Licences,09/08/2016,34659,232.5
Lancaster City Council,30UH,Dvla,Environmental Services,Vehicle Licences,22/08/2016,34766,232.5
Lancaster City Council,30UH,Dvla,Environmental Services,Vehicle Licences,22/08/2016,34767,232.5
Lancaster City Council,30UH,Dvla,Environmental Services,Vehicle Licences,22/08/2016,34768,232.5
Lancaster City Council,30UH,Dvla,Environmental Services,Vehicle Licences,31/08/2016,34884,232.5
Lancaster City Council,30UH,Dvla,Environmental Services,Vehicle Licences,05/09/2016,35008,167.5
Lancaster City Council,30UH,Dvla,Environmental Services,Vehicle Licences,05/09/2016,35009,232.5
Lancaster City Council,30UH,Dvla,Environmental Services,Vehicle Licences,05/09/2016,35010,232.5
Lancaster City Council,30UH,Dvla,Environmental Services,Vehicle Licences,05/09/2016,35011,232.5
Lancaster City Council,30UH,Dvla,Environmental Services,Vehicle Licences,05/09/2016,35012,232.5
Lancaster City Council,30UH,Dvla,Environmental Services,Vehicle Licences,05/09/2016,35013,232.5
Lancaster City Council,30UH,Dvla,Environmental Services,Vehicle Licences,05/09/2016,35014,232.5
Lancaster City Council,30UH,Dvla,Environmental Services,Vehicle Licences,05/09/2016,35015,232.5
Lancaster City Council,30UH,Dvla,Environmental Services,Vehicle Licences,13/09/2016,35083,232.5
Lancaster City Council,30UH,DVSA,Environmental Services,Materials - General,07/09/2016,35039,205
Lancaster City Council,30UH,DW sports,Health & Housing,Clothing & Uniforms,30/09/2016,bpc004502,189.02
Lancaster City Council,30UH,Dynostart ,Health & Housing,Equipment and Tools - General,30/09/2016,bpc004499,170
Lancaster City Council,30UH,Earlsmere Limited,Environmental Services,Equipment and Tools - General,05/07/2016,34254,79
Lancaster City Council,30UH,ebay,Health & Housing,Equipment and Tools - General,21/09/2016,spc001815,5.44
Lancaster City Council,30UH,ebay,Health & Housing,Equipment and Tools - General,21/09/2016,spc001821,5.44
Lancaster City Council,30UH,EBuyer,Health & Housing,IT Consumables,11/07/2016,spc001706,7.2
Lancaster City Council,30UH,EBuyer,Health & Housing,Equipment and Tools - General,21/07/2016,spc001719,44.15
Lancaster City Council,30UH,EBuyer,Health & Housing,IT Consumables,23/08/2016,spc001774,191.64
Lancaster City Council,30UH,EBuyer,Health & Housing,IT Consumables,25/08/2016,spc001778,191.64
Lancaster City Council,30UH,EBuyer,Health & Housing,Equipment and Tools - General,01/08/2016,spc001738,78.48
Lancaster City Council,30UH,EBuyer,Health & Housing,Equipment and Tools - General,19/09/2016,spc001810,95.82
Lancaster City Council,30UH,ECommerce,Resources,R & M - Buildings,22/09/2016,ppc000661,6.48
Lancaster City Council,30UH,ecotricity,Regeneration and Planning,Electricity,26/09/2016,npc001396,28.77
Lancaster City Council,30UH,ecotricity,Regeneration and Planning,Electricity,06/07/2016,npc001292,19.67
Lancaster City Council,30UH,ecotricity,Regeneration and Planning,Electricity,09/08/2016,npc001333,30.29
Lancaster City Council,30UH,EG Garages,Environmental Services,Fuel Oil,04/07/2016,34207,52.49
Lancaster City Council,30UH,Electronic Temperature Instrum,Health & Housing,Equipment and Tools - General,06/07/2016,spc001698,61.25
Lancaster City Council,30UH,Emap Publishing Limted,Management Team,Books & Periodicals,22/08/2016,mpc000064,249
Lancaster City Council,30UH,English Lakes Ice Cream,Regeneration and Planning,Catering Provisions,30/09/2016,npc001405,59.92
Lancaster City Council,30UH,Entre Prises,Regeneration and Planning,R & M - General,04/07/2016,npc001290,277
Lancaster City Council,30UH,Eon,Environmental Services,Electricity,31/08/2016,34897,263.58
Lancaster City Council,30UH,Eon,Environmental Services,Electricity,23/09/2016,35208,3765.27
Lancaster City Council,30UH,Eon,Environmental Services,Electricity,28/09/2016,35231,431.58
Lancaster City Council,30UH,Eon,Environmental Services,Electricity,28/09/2016,35232,299.81
Lancaster City Council,30UH,Ergomounts,Resources,Infrastructure - Update & Maintenance,28/07/2016,jpc000830,602.15
Lancaster City Council,30UH,expressgrass.com,Health & Housing,Equipment and Tools - General,12/09/2016,bpc004457,499.67
Lancaster City Council,30UH,Facebook,Regeneration and Planning,Internet Provision,01/08/2016,34534,50
Lancaster City Council,30UH,Facebook,Regeneration and Planning,Marketing,25/07/2016,npc001313,92.57
Lancaster City Council,30UH,Facebook,Regeneration and Planning,Miscellaneous Advertising,01/07/2016,npc001287,58.17
Lancaster City Council,30UH,Facebook,Regeneration and Planning,Miscellaneous Advertising,31/08/2016,npc001368,275.44
Lancaster City Council,30UH,Facebook,Regeneration and Planning,Miscellaneous Advertising,31/08/2016,npc001369,17.9
Lancaster City Council,30UH,Fast Key Service,Resources,R & M - Buildings,06/09/2016,ppc000599,10.23
Lancaster City Council,30UH,Fast Key Service,Resources,R & M - Buildings,06/09/2016,ppc000600,5.63
Lancaster City Council,30UH,Fast Key Service,Resources,R & M - Buildings,23/09/2016,ppc000637,24.13
Lancaster City Council,30UH,Fiddlers`s Lancashire Crisps,Environmental Services,Materials For Resale,31/08/2016,34861,212.3
Lancaster City Council,30UH,Fiddlers`s Lancashire Crisps,Environmental Services,Materials For Resale,23/09/2016,35195,337.75
Lancaster City Council,30UH,Fiddlers`s Lancashire Crisps,Environmental Services,Materials For Resale,31/08/2016,34860,77.2
Lancaster City Council,30UH,Fiddlers`s Lancashire Crisps,Environmental Services,Materials For Resale,29/09/2016,35261,135.1
Lancaster City Council,30UH,Fiddlers`s Lancashire Crisps,Environmental Services,Materials For Resale,07/07/2016,34302,154.4
Lancaster City Council,30UH,FIRST AID .CO.UK,Health & Housing,First Aid Equipment,18/08/2016,bpc004394,55
Lancaster City Council,30UH,First Testing,Environmental Services,Contract Maintenance,03/08/2016,34585,170
Lancaster City Council,30UH,fishergate centre,Health & Housing,Miscellaneous Expenses,26/07/2016,bpc004278,2.92
Lancaster City Council,30UH,Fitted Mirrors &amp; Glass Ltd,Health & Housing,R & M - Buildings,11/08/2016,bpc004351,504.63
Lancaster City Council,30UH,Fitted Mirrors and Glass Ltd,Health & Housing,R & M - Buildings,18/08/2016,bpc004399,470.52
Lancaster City Council,30UH,"Fonez, Market Street, Lancaste",Resources,Equipment and Tools - General,26/09/2016,ppc000638,195
Lancaster City Council,30UH,Food Safety Direct,Health & Housing,Equipment and Tools - General,29/07/2016,spc001733,172.8
Lancaster City Council,30UH,Food Safety Direct Ltd,Health & Housing,Equipment and Tools - General,06/07/2016,spc001699,28.5
Lancaster City Council,30UH,Fosters Foods,Regeneration and Planning,Materials For Resale,05/07/2016,34556,248.31
Lancaster City Council,30UH,FR Jones and Son,Environmental Services,Clothing & Uniforms,07/07/2016,34304,136
Lancaster City Council,30UH,Francis Frith,Regeneration and Planning,Printing & Stationery,01/08/2016,34682,33.79
Lancaster City Council,30UH,Furniture@Work Ltd,Health & Housing,Equipment and Tools - General,15/08/2016,bpc004381,39
Lancaster City Council,30UH,Furniture@Work Ltd,Health & Housing,Materials - General,16/08/2016,bpc004386,102
Lancaster City Council,30UH,GB Antiques,Resources,Equipment and Tools - General,02/09/2016,ppc000586,3
Lancaster City Council,30UH,GB Antiques,Resources,Equipment and Tools - General,02/09/2016,ppc000587,416.5
Lancaster City Council,30UH,GB Antiques,Resources,Equipment and Tools - General,02/09/2016,ppc000588,24.5
Lancaster City Council,30UH,GB Antiques,Resources,Equipment and Tools - General,02/09/2016,ppc000589,55
Lancaster City Council,30UH,GB Antiques,Resources,Equipment and Tools - General,02/09/2016,ppc000590,65
Lancaster City Council,30UH,GB Antiques,Resources,Equipment and Tools - General,02/09/2016,ppc000591,337
Lancaster City Council,30UH,GB Antiques,Resources,Equipment and Tools - General,26/08/2016,ppc000561,195
Lancaster City Council,30UH,Gear 4 music,Health & Housing,Equipment and Tools - General,30/09/2016,bpc004494,40.37
Lancaster City Council,30UH,Gear4Mmusic,Health & Housing,Equipment and Tools - General,24/08/2016,bpc004411,138.32
Lancaster City Council,30UH,Gerrys Fishing,Environmental Services,Long Service Awards,06/07/2016,34271,125
Lancaster City Council,30UH,Gett Taxi,Health & Housing,Service Training Budget,22/09/2016,spc001829,9.83
Lancaster City Council,30UH,Gett Taxi,Health & Housing,Service Training Budget,22/09/2016,spc001830,9.42
Lancaster City Council,30UH,Glasdon,Regeneration and Planning,Equipment and Tools - General,23/09/2016,npc001393,88.58
Lancaster City Council,30UH,Google,Regeneration and Planning,Miscellaneous Advertising,31/08/2016,npc001370,1.04
Lancaster City Council,30UH,Google,Regeneration and Planning,Miscellaneous Advertising,30/09/2016,npc001402,50
Lancaster City Council,30UH,Grassmats .co.uk,Health & Housing,Equipment and Tools - General,11/08/2016,bpc004353,409
Lancaster City Council,30UH,Hala Pet Stores,Health & Housing,Materials - General,21/09/2016,bpc004484,148.76
Lancaster City Council,30UH,Hala Pet Stores,Environmental Services,Materials - General,04/07/2016,34239,128.44
Lancaster City Council,30UH,Hala Pet Stores,Environmental Services,Materials - General,31/08/2016,34863,187.46
Lancaster City Council,30UH,Hala Pet Stores,Environmental Services,Materials - General,29/09/2016,35264,25
Lancaster City Council,30UH,Halfords,Environmental Services,Repair & Mtce Of Vehicles,31/08/2016,34898,16.66
Lancaster City Council,30UH,Halfords,Health & Housing,Services - General,21/07/2016,bpc004263,6.67
Lancaster City Council,30UH,Hanging basket ltd,Governance,Civic Receptions & Mayoral Functions,03/08/2016,dpc000427,95.83
Lancaster City Council,30UH,Harrisons Packaging Ltd,Environmental Services,Materials - General,04/07/2016,34214,170.6
Lancaster City Council,30UH,Harrisons Packaging Ltd,Health & Housing,Materials - General,21/09/2016,bpc004482,158.63
Lancaster City Council,30UH,HCS,Resources,Cleaning Materials,05/07/2016,ppc000530,113
Lancaster City Council,30UH,HCS,Regeneration and Planning,Cleaning Materials,29/07/2016,npc001321,178.12
Lancaster City Council,30UH,HCS,Regeneration and Planning,Cleaning Materials,15/09/2016,npc001388,125.51
Lancaster City Council,30UH,HCS,Health & Housing,Cleansing Equipment,26/07/2016,bpc004279,159.51
Lancaster City Council,30UH,HCS,Health & Housing,Cleansing Equipment,29/07/2016,bpc004310,91.21
Lancaster City Council,30UH,HCS,Health & Housing,Cleansing Equipment,29/07/2016,bpc004311,22.49
Lancaster City Council,30UH,HCS,Health & Housing,Cleansing Equipment,08/08/2016,bpc004324,18.78
Lancaster City Council,30UH,HCS,Health & Housing,Cleansing Equipment,05/09/2016,bpc004441,63.68
Lancaster City Council,30UH,Hemming Group Ltd,Health & Housing,Subscriptions,07/07/2016,spc001702,112
Lancaster City Council,30UH,Hermes,Governance,Printing & Stationery,19/07/2016,dpc000424,65.65
Lancaster City Council,30UH,HiQ Marshalls,Environmental Services,Repair & Mtce Of Vehicles,31/08/2016,34873,165.83
Lancaster City Council,30UH,HiQ Marshalls,Environmental Services,Repair & Mtce Of Vehicles,31/08/2016,34874,17.46
Lancaster City Council,30UH,HMCTS,Governance,Legal & Court Costs,01/07/2016,lpc000391,2700
Lancaster City Council,30UH,HMRC,Governance,Legal & Court Costs,20/07/2016,lpc000396,335
Lancaster City Council,30UH,Holiday Inn,Regeneration and Planning,Hospitality,12/09/2016,npc001386,168.5
Lancaster City Council,30UH,Home bargins,Health & Housing,Equipment and Tools - General,31/07/2016,bpc004313,11.9
Lancaster City Council,30UH,Homebase,Resources,Equipment and Tools - General,01/08/2016,ppc000548,23.72
Lancaster City Council,30UH,Homebase,Regeneration and Planning,Equipment and Tools - General,02/08/2016,npc001325,28.32
Lancaster City Council,30UH,Homebase,Regeneration and Planning,Equipment and Tools - General,03/09/2016,npc001378,6.52
Lancaster City Council,30UH,Homebase ,Regeneration and Planning,Equipment and Tools - General,17/08/2016,npc001345,4.26
Lancaster City Council,30UH,Homemakers 1st Stop,Regeneration and Planning,Capital Payments To Contractors,15/07/2016,npc001307,6.66
Lancaster City Council,30UH,Homemakers 1st stop,Health & Housing,Equipment and Tools - General,27/09/2016,spc001837,29.95
Lancaster City Council,30UH,Hootsuite,Regeneration and Planning,Marketing,04/08/2016,npc001332,5.55
Lancaster City Council,30UH,Hootsuite,Regeneration and Planning,Marketing,31/08/2016,npc001371,5.63
Lancaster City Council,30UH,Hootsuite,Regeneration and Planning,Miscellaneous Advertising,30/09/2016,npc001403,5.66
Lancaster City Council,30UH,House of Marbles,Regeneration and Planning,Materials For Resale,01/07/2016,34171,177.92
Lancaster City Council,30UH,Hygiene Cleaning Supplies Ltd,Resources,Cleaning Materials,05/09/2016,ppc000596,454.29
Lancaster City Council,30UH,Hygiene Cleaning Supplies Ltd,Resources,Cleaning Materials,05/09/2016,ppc000595,679.55
Lancaster City Council,30UH,Hygiene Cleaning Supplies Ltd,Resources,Cleaning Materials,05/07/2016,ppc000531,310.23
Lancaster City Council,30UH,Hygiene Cleaning Supplies Ltd,Resources,Cleaning Materials,25/07/2016,ppc000546,75.9
Lancaster City Council,30UH,Hygiene Cleaning Supplies Ltd,Resources,Cleaning Materials,11/08/2016,ppc000553,121.39
Lancaster City Council,30UH,Hygiene Cleaning Supplies Ltd,Resources,Cleaning Materials,18/08/2016,ppc000559,10.5
Lancaster City Council,30UH,Hygiene Cleaning Supplies Ltd,Resources,Cleaning Materials,09/09/2016,ppc000604,75.9
Lancaster City Council,30UH,Hygiene Cleaning Supplies Ltd,Resources,Cleaning Materials,30/09/2016,ppc000643,101.5
Lancaster City Council,30UH,Hygiene Cleaning Supplies Ltd,Environmental Services,Other Cleaning,20/07/2016,34383,32.55
Lancaster City Council,30UH,Hygiene Cleaning Supplies Ltd,Environmental Services,Services - Trade Refuse,17/07/2016,34354,219
Lancaster City Council,30UH,Iceland,Health & Housing,Children & Young People,06/07/2016,hpc000412,11.82
Lancaster City Council,30UH,imustbuy,Regeneration and Planning,Printing & Stationery,13/07/2016,npc001301,7.38
Lancaster City Council,30UH,Indicator FL Memo,Health & Housing,Corporate Safety,22/07/2016,spc001724,164
Lancaster City Council,30UH,Information Commissioner`s Office,Governance,Information Management,04/07/2016,dpc000419,805
Lancaster City Council,30UH,Information Commissioner`s Office,Governance,Information Management,04/07/2016,dpc000420,280
Lancaster City Council,30UH,Instant print,Health & Housing,Marketing & Promotion,08/08/2016,spc001758,-22
Lancaster City Council,30UH,Instant Print,Health & Housing,Printing & Stationery,03/08/2016,bpc004320,78.33
Lancaster City Council,30UH,Instant Print,Health & Housing,Printing & Stationery,03/08/2016,bpc004321,451.33
Lancaster City Council,30UH,Instant Print,Health & Housing,Printing & Stationery,03/08/2016,bpc004322,11.66
Lancaster City Council,30UH,Instant Print,Health & Housing,Printing & Stationery,20/09/2016,bpc004469,166.32
Lancaster City Council,30UH,Instant Print,Health & Housing,Printing & Stationery,20/09/2016,bpc004470,164.99
Lancaster City Council,30UH,Instantprint,Health & Housing,Marketing,10/08/2016,bpc004345,312.17
Lancaster City Council,30UH,Instantprint,Health & Housing,Marketing,12/08/2016,bpc004374,5.83
Lancaster City Council,30UH,Instantprint,Regeneration and Planning,Marketing,15/07/2016,npc001305,47.16
Lancaster City Council,30UH,Instantprint,Regeneration and Planning,Marketing,15/07/2016,npc001308,226
Lancaster City Council,30UH,Instantprint,Regeneration and Planning,Marketing,21/07/2016,npc001312,31.16
Lancaster City Council,30UH,Instantprint,Regeneration and Planning,Marketing,02/08/2016,npc001327,40.83
Lancaster City Council,30UH,Instantprint,Regeneration and Planning,Marketing,15/08/2016,npc001337,275
Lancaster City Council,30UH,Instantprint,Regeneration and Planning,Marketing,26/08/2016,npc001363,31
Lancaster City Council,30UH,Instantprint,Regeneration and Planning,Marketing,05/09/2016,npc001379,51.83
Lancaster City Council,30UH,Instantprint,Regeneration and Planning,Marketing,21/09/2016,npc001390,51.32
Lancaster City Council,30UH,Instantprint,Regeneration and Planning,Marketing,30/09/2016,npc001411,104
Lancaster City Council,30UH,Instantprint,Regeneration and Planning,Marketing,30/09/2016,npc001412,31.16
Lancaster City Council,30UH,Instantprint,Regeneration and Planning,Marketing,30/09/2016,npc001413,-16.67
Lancaster City Council,30UH,Instantprint,Regeneration and Planning,Marketing,30/09/2016,npc001414,53.16
Lancaster City Council,30UH,Instantprint,Health & Housing,Marketing & Promotion,29/07/2016,spc001737,43.16
Lancaster City Council,30UH,Instantprint,Health & Housing,Printing & Stationery,01/07/2016,bpc004245,107.33
Lancaster City Council,30UH,Instantprint,Regeneration and Planning,Printing & Stationery,01/08/2016,34528,108.32
Lancaster City Council,30UH,Instantprint,Regeneration and Planning,Printing & Stationery,01/08/2016,34531,61.16
Lancaster City Council,30UH,Instantprint,Regeneration and Planning,Printing & Stationery,01/08/2016,34532,72
Lancaster City Council,30UH,Instantprint,Environmental Services,Printing & Stationery,20/07/2016,34561,39.99
Lancaster City Council,30UH,Instantprint,Environmental Services,Printing & Stationery,20/07/2016,35000,8.32
Lancaster City Council,30UH,Instantprint,Regeneration and Planning,Printing & Stationery,19/07/2016,npc001310,49.16
Lancaster City Council,30UH,Instantprint,Health & Housing,Marketing & Promotion,25/07/2016,spc001726,63.16
Lancaster City Council,30UH,Instantprint,Environmental Services,Capital Payments To Contractors,04/08/2016,34593,50.16
Lancaster City Council,30UH,Institute of Swimming,Environmental Services,Service Training Budget,08/08/2016,34614,299
Lancaster City Council,30UH,IOS,Health & Housing,Service Training Budget,01/07/2016,bpc004242,-20
Lancaster City Council,30UH,iron mongery direct,Health & Housing,Equipment and Tools - General,21/09/2016,spc001819,90
Lancaster City Council,30UH,Isle of Man Steam Packet,Regeneration and Planning,Concerts - General,13/09/2016,35122,39
Lancaster City Council,30UH,ITC Sales,Resources,Corporate Safety,28/07/2016,jpc000829,99.92
Lancaster City Council,30UH,ITC sales,Resources,Equipment Maintenance,01/09/2016,jpc000859,199.85
Lancaster City Council,30UH,ITC sales,Resources,Office Equipment,01/09/2016,jpc000858,99.92
Lancaster City Council,30UH,ITC Sales,Resources,Office Equipment,28/07/2016,jpc000827,282.95
Lancaster City Council,30UH,ITC Sales,Resources,Office Equipment,28/07/2016,jpc000831,199.85
Lancaster City Council,30UH,ITC Sales,Resources,Office Equipment,01/09/2016,jpc000861,369.95
Lancaster City Council,30UH,ITC sales,Resources,Purchase Of Equipment,01/09/2016,jpc000857,99.92
Lancaster City Council,30UH,ITC Sales,Resources,Purchase Of Equipment,28/07/2016,jpc000828,99.92
Lancaster City Council,30UH,ITC Sales,Resources,Purchase Of Equipment,01/09/2016,jpc000855,1159.25
Lancaster City Council,30UH,ITC Sales,Resources,Purchase Of Equipment,01/09/2016,jpc000856,-774.7
Lancaster City Council,30UH,ITC Sales,Resources,Software Miscellaneous,28/07/2016,jpc000826,102.9
Lancaster City Council,30UH,J Atkinson & Co,Health & Housing,Materials For Resale,26/07/2016,bpc004284,125.4
Lancaster City Council,30UH,J Atkinson & Co,Resources,Equipment and Tools - General,22/09/2016,ppc000624,198
Lancaster City Council,30UH,J Atkinson & Co,Health & Housing,Equipment Operating Leases,12/09/2016,bpc004458,9000
Lancaster City Council,30UH,J Atkinson & Co,Health & Housing,Materials For Resale,26/07/2016,bpc004294,99.54
Lancaster City Council,30UH,J Atkinson & Co,Health & Housing,Materials For Resale,26/07/2016,bpc004301,148.8
Lancaster City Council,30UH,J Atkinson & Co,Health & Housing,Materials For Resale,11/08/2016,bpc004348,189.8
Lancaster City Council,30UH,J Atkinson & Co,Resources,Materials For Resale,18/08/2016,ppc000558,28.5
Lancaster City Council,30UH,J Atkinson & Co,Resources,Materials For Resale,23/09/2016,ppc000636,145
Lancaster City Council,30UH,J Atkinson & Co,Health & Housing,Materials For Resale,12/09/2016,bpc004449,74.4
Lancaster City Council,30UH,J Atkinson & Co,Health & Housing,Materials For Resale,15/09/2016,bpc004463,112.9
Lancaster City Council,30UH,J Atkinson & Co,Resources,Materials For Resale,26/09/2016,ppc000639,18
Lancaster City Council,30UH,J Atkinson & Co,Resources,Materials For Resale,26/09/2016,ppc000640,4.58
Lancaster City Council,30UH,JAK Water Systems Ltd,Health & Housing,Equipment and Tools - General,21/09/2016,bpc004473,368.6
Lancaster City Council,30UH,JAK Water Systems Ltd,Health & Housing,Equipment and Tools - General,26/07/2016,bpc004287,317.75
Lancaster City Council,30UH,JJ Martin Catering Appliances,Environmental Services,Equipment and Tools - General,28/09/2016,35228,537.23
Lancaster City Council,30UH,JMP,Environmental Services,Materials For Resale,07/07/2016,34300,998.51
Lancaster City Council,30UH,JMP,Environmental Services,Materials For Resale,31/08/2016,34870,1155.52
Lancaster City Council,30UH,JMP,Environmental Services,Materials For Resale,23/09/2016,35202,1019.6
Lancaster City Council,30UH,John Monaghan Ltd,Resources,R & M - Buildings,12/07/2016,ppc000535,45.16
Lancaster City Council,30UH,John Monaghan Ltd,Resources,R & M - Buildings,24/08/2016,ppc000560,54.62
Lancaster City Council,30UH,John Monaghan Ltd,Resources,R & M - Buildings,06/09/2016,ppc000602,-0.84
Lancaster City Council,30UH,John Monaghan Ltd,Resources,R & M - Buildings,20/09/2016,ppc000619,61.84
Lancaster City Council,30UH,John Monaghan Ltd,Resources,R & M - Buildings,20/09/2016,ppc000620,36.94
Lancaster City Council,30UH,John Monaghan Ltd,Resources,R & M - Buildings,28/09/2016,ppc000641,108.62
Lancaster City Council,30UH,Johnson Asda lancaster,Health & Housing,Equipment and Tools - General,30/08/2016,bpc004427,8.32
Lancaster City Council,30UH,Johnstones Decorating Centre,Environmental Services,R & M - Buildings (Within Service),28/09/2016,35240,94.79
Lancaster City Council,30UH,JPL,Health & Housing,Equipment and Tools - General,19/09/2016,bpc004466,172.1
Lancaster City Council,30UH,JPL,Health & Housing,Materials For Resale,19/09/2016,bpc004467,51
Lancaster City Council,30UH,Jubilee Car Park,Regeneration and Planning,Car Allowances - Officers,05/07/2016,34554,5.83
Lancaster City Council,30UH,Judge Sampson Ltd,Regeneration and Planning,Materials For Resale,14/09/2016,35096,258.72
Lancaster City Council,30UH,Kays Cards Ltd,Environmental Services,Equipment and Tools - General,20/07/2016,35342,22.33
Lancaster City Council,30UH,Keycraft,Environmental Services,Materials For Resale,04/07/2016,34222,710.68
Lancaster City Council,30UH,Keycraft,Environmental Services,Materials For Resale,07/07/2016,34297,1037.58
Lancaster City Council,30UH,Keycraft,Environmental Services,Materials For Resale,31/08/2016,34859,983.58
Lancaster City Council,30UH,Keycraft,Health & Housing,Materials For Resale,21/09/2016,bpc004487,1796.52
Lancaster City Council,30UH,Keysoft Solutions,Regeneration and Planning,Software Purchase\Licences,19/07/2016,npc001311,470
Lancaster City Council,30UH,Killgerm Chemicals Ltd,Health & Housing,Equipment and Tools - General,21/07/2016,spc001720,364.2
Lancaster City Council,30UH,Killgerm Chemicals Ltd,Health & Housing,Materials - General,05/08/2016,spc001757,107.66
Lancaster City Council,30UH,Killgerm Chemicals Ltd,Health & Housing,Materials - General,10/08/2016,spc001762,181.28
Lancaster City Council,30UH,Killgerm Chemicals Ltd,Health & Housing,Materials - General,19/08/2016,spc001770,505.02
Lancaster City Council,30UH,Killgerm Chemicals Ltd,Health & Housing,Materials - General,06/09/2016,spc001794,105.33
Lancaster City Council,30UH,Killgerm Chemicals Ltd,Health & Housing,Materials - General,08/09/2016,spc001802,187.64
Lancaster City Council,30UH,Killgerm Chemicals Ltd,Health & Housing,Materials - General,27/09/2016,spc001839,635.04
Lancaster City Council,30UH,Kirby Lonsdale Coaches,Health & Housing,Tenants Participation,04/07/2016,hpc000411,291.67
Lancaster City Council,30UH,Kitchen Corner,Resources,Equipment and Tools - General,18/07/2016,ppc000537,13.33
Lancaster City Council,30UH,Kitchen Corner,Resources,Equipment and Tools - General,02/09/2016,ppc000594,10
Lancaster City Council,30UH,Kitchen Corner,Resources,Equipment and Tools - General,22/09/2016,ppc000627,30.75
Lancaster City Council,30UH,Lakes Catering Maintenance,Health & Housing,Equipment and Tools - General,21/09/2016,bpc004479,224.95
Lancaster City Council,30UH,Lancaster Brewery,Regeneration and Planning,Bar Supplies,07/09/2016,npc001380,135
Lancaster City Council,30UH,Lancaster Brewery,Regeneration and Planning,Bar Supplies,16/08/2016,npc001339,90
Lancaster City Council,30UH,Lancaster Brewery,Environmental Services,Materials For Resale,04/07/2016,34213,200
Lancaster City Council,30UH,Lancaster Brewery,Environmental Services,Materials For Resale,31/08/2016,34872,350
Lancaster City Council,30UH,Lancaster Brewery,Environmental Services,Materials For Resale,23/09/2016,35200,450
Lancaster City Council,30UH,Lancaster Brewery,Resources,Catering Provisions,12/07/2016,ppc000532,73.33
Lancaster City Council,30UH,Lancaster Brewery,Environmental Services,Materials For Resale,29/09/2016,35267,80
Lancaster City Council,30UH,Lancaster City Laundry,Resources,Laundry,19/09/2016,ppc000616,36
Lancaster City Council,30UH,Lancaster District Chamber,Management Team,Sundry Expenses,06/07/2016,mpc000056,10
Lancaster City Council,30UH,LANCASTER TRAINING SERVICES,Environmental Services,Service Training Budget,21/07/2016,34395,37
Lancaster City Council,30UH,Lance Print Ltd,Regeneration and Planning,Miscellaneous Advertising,18/08/2016,npc001347,92.8
Lancaster City Council,30UH,Lathams,Environmental Services,Materials For Resale,04/07/2016,34211,1537.23
Lancaster City Council,30UH,Lathams,Environmental Services,Materials For Resale,07/07/2016,34299,1366.68
Lancaster City Council,30UH,Lathams,Environmental Services,Materials For Resale,31/08/2016,34869,1841.66
Lancaster City Council,30UH,Lathams,Environmental Services,Materials For Resale,23/09/2016,35197,2294.73
Lancaster City Council,30UH,LBS,Environmental Services,Equipment and Tools - General,04/07/2016,34227,80.15
Lancaster City Council,30UH,LBS,Environmental Services,Materials - General,04/07/2016,34212,147.5
Lancaster City Council,30UH,LCR,Environmental Services,Contract Maintenance,31/08/2016,34867,350
Lancaster City Council,30UH,LCR,Environmental Services,Printing & Stationery,31/08/2016,34896,212
Lancaster City Council,30UH,LCR Systems,Environmental Services,Equipment and Tools - General,07/07/2016,34293,36
Lancaster City Council,30UH,LCR Systems,Health & Housing,Equipment and Tools - General,21/09/2016,bpc004488,150
Lancaster City Council,30UH,Les Mills Fitness UK Ltd,Health & Housing,Miscellaneous Licences,08/08/2016,bpc004337,114.13
Lancaster City Council,30UH,Limpet Labels UK Ltd,Environmental Services,Printing & Stationery,30/09/2016,35331,150
Lancaster City Council,30UH,LOCK DOCTOR,Environmental Services,Office Equipment,20/07/2016,34387,9.8
Lancaster City Council,30UH,LOCO2 ENRGY,Health & Housing,Electricity,04/07/2016,hpc000405,12.09
Lancaster City Council,30UH,London Gazette ,Governance,Legal & Court Costs,08/08/2016,lpc000403,20.6
Lancaster City Council,30UH,London Gazette ,Governance,Legal & Court Costs,08/08/2016,lpc000404,2.25
Lancaster City Council,30UH,London Pupae Supllies,Health & Housing,Materials - General,21/09/2016,bpc004480,353.2
Lancaster City Council,30UH,London Pupae Supplies,Environmental Services,Materials - General,04/07/2016,34216,176.6
Lancaster City Council,30UH,London Pupae Supplies,Environmental Services,Materials - General,04/07/2016,34218,1059.6
Lancaster City Council,30UH,London Pupae Supplies,Environmental Services,Materials - General,31/08/2016,34855,353.15
Lancaster City Council,30UH,London Pupae Supplies,Environmental Services,Equipment and Tools - General,29/09/2016,35268,353.2
Lancaster City Council,30UH,Lothersdale Hotel,Regeneration and Planning,Exhibitions & Events - Expenses,26/08/2016,npc001360,29.17
Lancaster City Council,30UH,Lyco Group Ltd,Resources,R & M - Buildings,06/09/2016,ppc000601,600
Lancaster City Council,30UH,Lyreco UK Limited,Resources,Computer Consumables,28/07/2016,jpc000822,13.7
Lancaster City Council,30UH,Lyreco UK Limited,Resources,Computer Consumables,01/09/2016,jpc000852,43.52
Lancaster City Council,30UH,Lyreco UK Limited,Management Team,Office Equipment,15/08/2016,mpc000062,13.4
Lancaster City Council,30UH,Lyreco UK Limited,Resources,Office Equipment,17/08/2016,ppc000556,45.4
Lancaster City Council,30UH,Lyreco UK Limited,Resources,Office Equipment,23/09/2016,ppc000635,89.95
Lancaster City Council,30UH,Lyreco UK Limited,Resources,Printing & Stationery,06/09/2016,fpc000194,29.81
Lancaster City Council,30UH,Lyreco UK Limited,Governance,Printing & Stationery,16/08/2016,dpc000428,73.6
Lancaster City Council,30UH,Lyreco UK Limited,Regeneration and Planning,Printing & Stationery,13/09/2016,35222,113.67
Lancaster City Council,30UH,Lyreco UK Limited,Governance,Printing & Stationery,22/07/2016,lpc000399,7.36
Lancaster City Council,30UH,Lyreco UK Limited,Governance,Printing & Stationery,27/07/2016,lpc000400,47.33
Lancaster City Council,30UH,Lyreco UK Limited,Governance,Printing & Stationery,06/09/2016,lpc000408,19.99
Lancaster City Council,30UH,Lyreco UK Limited,Governance,Printing & Stationery,30/09/2016,lpc000415,20.05
Lancaster City Council,30UH,Lyreco UK Limited,Governance,Printing & Stationery,30/09/2016,lpc000416,7
Lancaster City Council,30UH,Lyreco UK Limited,Management Team,Printing & Stationery,01/08/2016,mpc000061,16.67
Lancaster City Council,30UH,Lyreco UK Limited,Management Team,Printing & Stationery,15/08/2016,mpc000063,7.75
Lancaster City Council,30UH,Lyreco UK Limited,Management Team,Printing & Stationery,30/08/2016,mpc000065,39.65
Lancaster City Council,30UH,Lyreco UK Limited,Management Team,Printing & Stationery,14/09/2016,mpc000067,18.83
Lancaster City Council,30UH,Lyreco UK Limited,Resources,Printing & Stationery,13/07/2016,ppc000536,22.7
Lancaster City Council,30UH,Lyreco UK Limited,Resources,Printing & Stationery,21/07/2016,ppc000543,36.52
Lancaster City Council,30UH,Lyreco UK Limited,Resources,Printing & Stationery,13/09/2016,ppc000613,22.05
Lancaster City Council,30UH,Lyreco UK Limited,Regeneration and Planning,Clothing & Uniforms,09/08/2016,npc001334,14.99
Lancaster City Council,30UH,Lyreco UK Limited,Environmental Services,Printing & Stationery,20/07/2016,34998,23.07
Lancaster City Council,30UH,Lyreco UK Limited,Environmental Services,Printing & Stationery,20/07/2016,34999,21.56
Lancaster City Council,30UH,Lyreco UK Limited,Regeneration and Planning,Printing & Stationery,09/08/2016,npc001334,7.75
Lancaster City Council,30UH,Lyreco UK Limited,Regeneration and Planning,Printing & Stationery,26/09/2016,npc001397,19.16
Lancaster City Council,30UH,Mailchimp,Regeneration and Planning,Internet Provision,01/09/2016,34926,191.87
Lancaster City Council,30UH,Mailchimp,Regeneration and Planning,Marketing,08/07/2016,npc001300,200.09
Lancaster City Council,30UH,Makro,Resources,Materials For Resale,08/09/2016,ppc000603,50.46
Lancaster City Council,30UH,Makro,Resources,Materials For Resale,12/07/2016,ppc000534,61.46
Lancaster City Council,30UH,Manchester Airport,Health & Housing,Equipment and Tools - General,07/09/2016,spc001796,40
Lancaster City Council,30UH,Manchester Met ,Regeneration and Planning,Materials For Resale,05/07/2016,34244,39.6
Lancaster City Council,30UH,Marks and Spencer,Health & Housing,Clothing & Uniforms,18/08/2016,bpc004397,86.25
Lancaster City Council,30UH,Marks and Spencer,Governance,Catering Provisions,14/09/2016,dpc000437,6.5
Lancaster City Council,30UH,Matalan,Health & Housing,Clothing & Uniforms,21/09/2016,bpc004472,10
Lancaster City Council,30UH,Matalan,Health & Housing,Clothing & Uniforms,04/07/2016,bpc004247,10
Lancaster City Council,30UH,Matalan,Health & Housing,Clothing & Uniforms,24/08/2016,bpc004412,84.17
Lancaster City Council,30UH,Matalan,Health & Housing,Clothing & Uniforms,26/08/2016,bpc004418,20
Lancaster City Council,30UH,Matalan,Health & Housing,Equipment and Tools - General,25/07/2016,bpc004276,20
Lancaster City Council,30UH,MBI,Resources,Infrastructure - Update & Maintenance,01/09/2016,jpc000854,504.7
Lancaster City Council,30UH,Megabus,Health & Housing,Homelessness Priority Need Order,25/08/2016,spc001783,16.5
Lancaster City Council,30UH,Meltemi,Regeneration and Planning,Clothing & Uniforms,22/08/2016,34769,145.85
Lancaster City Council,30UH,Meltemi,Regeneration and Planning,Clothing & Uniforms,18/08/2016,34743,279.7
Lancaster City Council,30UH,Meltemi,Environmental Services,Clothing & Uniforms,17/07/2016,34355,131.4
Lancaster City Council,30UH,Midland Hotel,Health & Housing,Marketing,30/09/2016,bpc004500,37
Lancaster City Council,30UH,Midland Hotel Manchester Ltd,Resources,Conferences & Seminars,08/08/2016,fpc000190,248.33
Lancaster City Council,30UH,Mobility Linx,Health & Housing,Materials (Minor Adaptations),01/08/2016,spc001741,38.72
Lancaster City Council,30UH,Mobility Linx,Health & Housing,Materials (Minor Adaptations),01/08/2016,spc001740,10
Lancaster City Council,30UH,Mobility Linx,Health & Housing,Materials (Minor Adaptations),25/08/2016,spc001782,15
Lancaster City Council,30UH,Mobility Linx,Health & Housing,Materials (Minor Adaptations),21/09/2016,spc001818,10
Lancaster City Council,30UH,Morplan,Regeneration and Planning,Printing & Stationery,12/08/2016,34701,67.05
Lancaster City Council,30UH,Morplan,Regeneration and Planning,Services - General,24/08/2016,npc001353,86.1
Lancaster City Council,30UH,Morrisons,Regeneration and Planning,Exhibitions & Events - Expenses,30/09/2016,npc001406,28.75
Lancaster City Council,30UH,Morrisons,Regeneration and Planning,Exhibitions & Events - Expenses,17/08/2016,npc001346,18.21
Lancaster City Council,30UH,Morrisons,Regeneration and Planning,Exhibitions & Events - Expenses,19/08/2016,npc001349,1.92
Lancaster City Council,30UH,Morrisons,Regeneration and Planning,Exhibitions & Events - Expenses,21/09/2016,npc001391,16.78
Lancaster City Council,30UH,Morrisons,Environmental Services,Office Equipment,27/07/2016,34467,3
Lancaster City Council,30UH,Morrisons,Regeneration and Planning,Services - General,01/09/2016,npc001374,6.54
Lancaster City Council,30UH,MPLC,Health & Housing,Printing & Stationery,01/09/2016,hpc000432,1077.17
Lancaster City Council,30UH,My Hermes,Environmental Services,Printing & Stationery,20/07/2016,34560,4.42
Lancaster City Council,30UH,My Hermes,Environmental Services,Printing & Stationery,20/07/2016,34563,9
Lancaster City Council,30UH,Namesco,Regeneration and Planning,Internet Provision,01/08/2016,34529,24
Lancaster City Council,30UH,National Express,Health & Housing,Homelessness Priority Need Order,19/08/2016,spc001771,28
Lancaster City Council,30UH,NATIONAL RAIL,Environmental Services,Conferences & Seminars,27/07/2016,34474,27.3
Lancaster City Council,30UH,NCC Home Learning,Governance,Service Training Budget,06/09/2016,lpc000409,316.04
Lancaster City Council,30UH,NCC North West,Environmental Services,Materials - General,28/09/2016,35235,49.36
Lancaster City Council,30UH,Next,Health & Housing,Clothing & Uniforms,26/08/2016,bpc004420,38.33
Lancaster City Council,30UH,Nisbets,Environmental Services,Equipment and Tools - General,31/08/2016,34890,241
Lancaster City Council,30UH,Nisbets,Resources,Equipment and Tools - General,15/09/2016,ppc000647,215.87
Lancaster City Council,30UH,Nisbets,Resources,Equipment and Tools - General,29/07/2016,ppc000550,121.37
Lancaster City Council,30UH,North West Roofing Supplies Lt,Environmental Services,Materials - General,05/07/2016,34253,175
Lancaster City Council,30UH,Northampton online store,Health & Housing,Service Training Budget,07/07/2016,hpc000417,60
Lancaster City Council,30UH,Norther Rail,Health & Housing,Use Of Public Tpt - Officers,22/08/2016,spc001772,31.3
Lancaster City Council,30UH,Northern,Health & Housing,Use Of Public Tpt - Officers,18/07/2016,spc001715,21.4
Lancaster City Council,30UH,Northern,Health & Housing,Use Of Public Tpt - Officers,15/09/2016,spc001807,91.5
Lancaster City Council,30UH,Northern (Morecambe Station),Regeneration and Planning,Use Of Public Tpt - Officers,30/09/2016,npc001415,70
Lancaster City Council,30UH,Northern Rail,Health & Housing,Service Training Budget,26/08/2016,spc001784,23.9
Lancaster City Council,30UH,Northern Rail,Health & Housing,Use Of Public Tpt - Officers,22/09/2016,spc001826,14.7
Lancaster City Council,30UH,Northern Rail,Management Team,Use Of Public Tpt - Officers,14/07/2016,mpc000057,13.2
Lancaster City Council,30UH,Northern Rail,Regeneration and Planning,Use Of Public Tpt - Officers,06/07/2016,npc001293,5.9
Lancaster City Council,30UH,NORTHUMBERLAND CC,Environmental Services,Services - Consultants,27/07/2016,34465,3538.82
Lancaster City Council,30UH,Not on the Highstreet,Health & Housing,Equipment and Tools - General,30/08/2016,bpc004432,42.99
Lancaster City Council,30UH,NW Total,Environmental Services,R & M - Buildings (Within Service),04/07/2016,34230,372.5
Lancaster City Council,30UH,OCS Group UK Limited t/a Cannon Hygiene,Environmental Services,Services - General,17/07/2016,34352,508.27
Lancaster City Council,30UH,OCS Group UK Limited t/a Cannon Hygiene,Environmental Services,Services - General,17/07/2016,34353,69.67
Lancaster City Council,30UH,Ofcom,Health & Housing,Miscellaneous Licences,21/09/2016,bpc004476,135
Lancaster City Council,30UH,Office Coffee Co.,Resources,Catering Provisions,20/07/2016,ppc000542,191.4
Lancaster City Council,30UH,Office monster,Health & Housing,Printing & Stationery,21/09/2016,spc001811,6.59
Lancaster City Council,30UH,Office Supermarket,Health & Housing,R & M - Buildings,16/08/2016,bpc004387,582
Lancaster City Council,30UH,Office Supermarket,Health & Housing,R & M - Buildings,24/08/2016,bpc004407,74
Lancaster City Council,30UH,One Direct,Health & Housing,Equipment and Tools - General,30/08/2016,spc001787,12.47
Lancaster City Council,30UH,One4All Gift Cards,Resources,Long Service Awards,12/09/2016,rpc000091,125.99
Lancaster City Council,30UH,OPUS ENERGY,Health & Housing,Electricity,04/07/2016,hpc000406,25.04
Lancaster City Council,30UH,Palintest,Health & Housing,Equipment and Tools - General,09/09/2016,spc001803,73.95
Lancaster City Council,30UH,Peregrine,Environmental Services,Materials - General,04/07/2016,34223,53.11
Lancaster City Council,30UH,Peregrine,Environmental Services,Materials - General,31/08/2016,34900,38.59
Lancaster City Council,30UH,Peregrine,Environmental Services,Materials - General,23/09/2016,35203,169.71
Lancaster City Council,30UH,Peregrine ,Environmental Services,Materials - General,03/08/2016,34588,78.66
Lancaster City Council,30UH,Peregrine ,Environmental Services,Materials - General,07/07/2016,34303,94.68
Lancaster City Council,30UH,Peregrine ,Environmental Services,Materials - General,07/07/2016,34307,38.6
Lancaster City Council,30UH,Peregrine ,Environmental Services,Materials - General,31/08/2016,34853,86.41
Lancaster City Council,30UH,Peregrine ,Environmental Services,Materials - General,28/09/2016,35243,21.82
Lancaster City Council,30UH,Physical Company,Health & Housing,Equipment and Tools - General,04/07/2016,bpc004250,48
Lancaster City Council,30UH,Physical Company,Health & Housing,Equipment and Tools - General,26/08/2016,bpc004417,116.95
Lancaster City Council,30UH,Physical Company,Health & Housing,Equipment and Tools - General,08/08/2016,bpc004330,120.4
Lancaster City Council,30UH,plastic sheet sales,Health & Housing,Materials - General,01/08/2016,spc001747,231.06
Lancaster City Council,30UH,Post Office,Health & Housing,Equipment and Tools - General,10/08/2016,bpc004346,13.67
Lancaster City Council,30UH,Post Office,Health & Housing,Equipment and Tools - General,22/09/2016,bpc004489,10.82
Lancaster City Council,30UH,Post Office,Health & Housing,Equipment and Tools - General,01/07/2016,spc001693,8.55
Lancaster City Council,30UH,Post Office,Environmental Services,Equipment and Tools - General,01/07/2016,34170,2.06
Lancaster City Council,30UH,Post Office,Environmental Services,Office Equipment,06/07/2016,34272,3.95
Lancaster City Council,30UH,Post Office,Governance,Printing & Stationery,22/07/2016,lpc000398,5.12
Lancaster City Council,30UH,Post Office,Health & Housing,Services - General,04/07/2016,spc001697,2.56
Lancaster City Council,30UH,Post Office,Health & Housing,Services - General,07/07/2016,spc001703,0.96
Lancaster City Council,30UH,Post Office,Health & Housing,Services - General,08/07/2016,spc001705,1.27
Lancaster City Council,30UH,Post Office,Health & Housing,Services - General,20/07/2016,spc001718,2.25
Lancaster City Council,30UH,Post Office,Governance,Support - Postage,14/09/2016,lpc000410,19.2
Lancaster City Council,30UH,Post Office,Governance,Support - Postage,20/07/2016,lpc000395,11
Lancaster City Council,30UH,Post Office,Governance,Support - Postage,14/09/2016,lpc000411,8.55
Lancaster City Council,30UH,Post Office,Governance,Support - Postage,20/07/2016,lpc000394,2.54
Lancaster City Council,30UH,Post Office,Health & Housing,Printing & Stationery,09/08/2016,bpc004338,7.7
Lancaster City Council,30UH,Post Office,Resources,Postage (Internal),30/09/2016,ppc000642,62.4
Lancaster City Council,30UH,Post Office,Resources,Postages,30/09/2016,ppc000642,20.32
Lancaster City Council,30UH,Post Office,Regeneration and Planning,Printing & Stationery,02/08/2016,npc001326,8.55
Lancaster City Council,30UH,Post Office,Health & Housing,Services - General,09/09/2016,spc001805,1.28
Lancaster City Council,30UH,Post Office,Health & Housing,Services - General,12/09/2016,spc001806,0.64
Lancaster City Council,30UH,Post Office,Health & Housing,Services - General,23/09/2016,spc001831,1.27
Lancaster City Council,30UH,Poundland,Health & Housing,Children & Young People,06/07/2016,hpc000413,5.84
Lancaster City Council,30UH,Poundland,Health & Housing,Children & Young People,29/09/2016,hpc000437,7
Lancaster City Council,30UH,Poundland,Regeneration and Planning,Printing & Stationery,20/07/2016,34394,3.34
Lancaster City Council,30UH,PPG Coatings,Regeneration and Planning,R & M - Sea & River / Promenade,04/07/2016,npc001291,109.74
Lancaster City Council,30UH,PPG Industries,Environmental Services,Materials - General,07/07/2016,34294,64.96
Lancaster City Council,30UH,PPL,Environmental Services,Exhibitions & Events,04/07/2016,34220,130.51
Lancaster City Council,30UH,Premier Inn,Health & Housing,Service Training Budget,26/07/2016,bpc004280,104.98
Lancaster City Council,30UH,Preston Station ,Health & Housing,Service Training Budget,22/09/2016,spc001828,30
Lancaster City Council,30UH,Print Impressions,Environmental Services,Printing & Stationery,04/07/2016,34235,235
Lancaster City Council,30UH,Printed.com,Regeneration and Planning,Printing & Stationery,01/09/2016,34927,165.72
Lancaster City Council,30UH,Printed.com,Regeneration and Planning,Printing & Stationery,01/09/2016,34928,57.29
Lancaster City Council,30UH,printing.com Lancaster,Management Team,Printing & Stationery,15/07/2016,mpc000058,29
Lancaster City Council,30UH,Promenade Music,Resources,Materials For Resale,31/08/2016,ppc000580,385
Lancaster City Council,30UH,Pro-Ven,Resources,Service Training Budget,30/09/2016,jpc000874,183.33
Lancaster City Council,30UH,PRS  for Music,Environmental Services,Entertainment Fees,20/07/2016,35341,39.6
Lancaster City Council,30UH,Public Health England,Health & Housing,Service Training Budget,04/08/2016,spc001754,410
Lancaster City Council,30UH,Pye Motors,Health & Housing,Tenants Participation,07/07/2016,hpc000414,66.67
Lancaster City Council,30UH,Pye Motors,Health & Housing,Tenants Participation,07/07/2016,hpc000415,20.45
Lancaster City Council,30UH,Pye Motors,Health & Housing,Service Training Budget,11/08/2016,bpc004350,99.56
Lancaster City Council,30UH,Quality Plus,Health & Housing,Equipment Funded by Reserves,24/08/2016,hpc000424,107.5
Lancaster City Council,30UH,Quickfire Tableware Ltd,Environmental Services,Equipment and Tools - General,07/07/2016,34305,449.05
Lancaster City Council,30UH,Rainbow Slush,Health & Housing,Materials For Resale,21/09/2016,bpc004485,1176.5
Lancaster City Council,30UH,Rainbow Slush,Environmental Services,Materials For Resale,07/07/2016,34298,219.17
Lancaster City Council,30UH,Rainbow Slush,Environmental Services,Materials For Resale,31/08/2016,34871,484.5
Lancaster City Council,30UH,RAL display marketing,Regeneration and Planning,Marketing,28/07/2016,npc001320,211
Lancaster City Council,30UH,Reel Cinema,Health & Housing,Services - General,17/08/2016,bpc004388,99.9
Lancaster City Council,30UH,Reel Cinema,Health & Housing,Services - General,10/08/2016,bpc004344,103.23
Lancaster City Council,30UH,Reel Cinemas,Health & Housing,Services - General,24/08/2016,bpc004410,99.9
Lancaster City Council,30UH,Replacement Keys,Health & Housing,Equipment and Tools - General,18/08/2016,bpc004391,58.33
Lancaster City Council,30UH,Resourceful Manager,Health & Housing,Equipment and Tools - General,29/07/2016,spc001752,35.17
Lancaster City Council,30UH,Rexel,Environmental Services,Materials - General,31/08/2016,34856,35.4
Lancaster City Council,30UH,Rexel ,Environmental Services,Equipment and Tools - General,07/07/2016,34292,57.42
Lancaster City Council,30UH,RIBA BOOKS,Environmental Services,Materials - General,08/07/2016,34312,79.26
Lancaster City Council,30UH,Ricardo-AEA Ltd,Health & Housing,Service Training Budget,16/09/2016,spc001808,735
Lancaster City Council,30UH,RJB Stone,Environmental Services,Materials For Resale,04/07/2016,34231,329.4
Lancaster City Council,30UH,RJB Stone,Environmental Services,Materials For Resale,29/09/2016,35278,483.9
Lancaster City Council,30UH,RLSS Direct,Health & Housing,Service Training Budget,24/07/2016,bpc004272,41.67
Lancaster City Council,30UH,RLSS Direct,Health & Housing,Service Training Budget,15/07/2016,bpc004253,50
Lancaster City Council,30UH,RLSS Direct,Health & Housing,Service Training Budget,01/08/2016,bpc004314,386.45
Lancaster City Council,30UH,RLSS Direct ,Health & Housing,Service Training Budget,01/08/2016,bpc004315,50
Lancaster City Council,30UH,RLSS UK,Health & Housing,Service Training Budget,26/07/2016,bpc004288,42
Lancaster City Council,30UH,Robin Sutton Gas,Health & Housing,Equipment and Tools - General,19/07/2016,bpc004260,257.14
Lancaster City Council,30UH,Robinson Howell,Regeneration and Planning,Grants,15/07/2016,npc001309,300
Lancaster City Council,30UH,Royal Mail,Environmental Services,Equipment and Tools - General,04/07/2016,34236,1.5
Lancaster City Council,30UH,Royal Mail,Regeneration and Planning,Postages,08/09/2016,npc001381,8.55
Lancaster City Council,30UH,RS Components,Health & Housing,Printing & Stationery,18/08/2016,bpc004398,201.99
Lancaster City Council,30UH,RS Components,Resources,R & M - Buildings,02/09/2016,ppc000571,64.25
Lancaster City Council,30UH,RTPI,Regeneration and Planning,Service Training Budget,30/09/2016,npc001408,399
Lancaster City Council,30UH,Rubberstamps.co.uk,Environmental Services,Office Equipment,05/08/2016,34607,3.25
Lancaster City Council,30UH,Russums,Resources,Clothing & Uniforms,30/09/2016,ppc000657,178.59
Lancaster City Council,30UH,Ryman,Resources,Equipment and Tools - General,02/09/2016,ppc000572,3.98
Lancaster City Council,30UH,Ryman,Resources,Fixtures & Fittings - General,30/08/2016,ppc000566,5.82
Lancaster City Council,30UH,Ryman,Resources,Fixtures & Fittings - General,30/09/2016,ppc000644,25.77
Lancaster City Council,30UH,Ryman,Resources,Office Equipment,13/09/2016,ppc000611,7.9
Lancaster City Council,30UH,Ryman,Resources,Printing & Stationery,02/09/2016,ppc000581,22.47
Lancaster City Council,30UH,Ryman,Resources,Printing & Stationery,02/09/2016,ppc000582,38.28
Lancaster City Council,30UH,Ryman,Resources,Printing & Stationery,02/09/2016,ppc000583,11.13
Lancaster City Council,30UH,Ryman,Resources,Routine Maintenance,13/09/2016,ppc000612,34.1
Lancaster City Council,30UH,Ryman,Regeneration and Planning,Printing & Stationery,20/07/2016,34393,3.32
Lancaster City Council,30UH,Ryman,Resources,Printing & Stationery,30/09/2016,ppc000650,11.63
Lancaster City Council,30UH,SAFETY FIRST AID,Environmental Services,First Aid Equipment,04/08/2016,34592,66.73
Lancaster City Council,30UH,Safety First Aid Group T/A Medicircle,Regeneration and Planning,Office Equipment,26/07/2016,npc001319,16.7
Lancaster City Council,30UH,Safety First Aid Group T/A Medicircle,Environmental Services,Services - Medical Fees,05/07/2016,34255,370.95
Lancaster City Council,30UH,Safety Signs 4 Less ,Environmental Services,Equipment and Tools - General,31/08/2016,34886,16.95
Lancaster City Council,30UH,Sainsbury`s,Regeneration and Planning,Equipment and Tools - General,01/08/2016,34533,9
Lancaster City Council,30UH,Sainsbury`s,Environmental Services,Exhibitions & Events,18/07/2016,34357,5.87
Lancaster City Council,30UH,Sainsbury`s,Resources,Materials For Resale,31/08/2016,ppc000578,18.75
Lancaster City Council,30UH,Sainsbury`s,Resources,Catering Provisions,29/07/2016,ppc000549,53.57
Lancaster City Council,30UH,Sainsbury`s,Health & Housing,Clothing & Uniforms,26/08/2016,bpc004419,20
Lancaster City Council,30UH,Sainsbury`s,Health & Housing,Materials For Resale,09/08/2016,bpc004342,3.8
Lancaster City Council,30UH,Sainsbury`s,Resources,Materials For Resale,18/07/2016,ppc000538,3
Lancaster City Council,30UH,Sainsbury`s,Resources,Materials For Resale,25/07/2016,ppc000544,6
Lancaster City Council,30UH,Sainsbury`s,Health & Housing,Services - General,02/08/2016,bpc004319,31
Lancaster City Council,30UH,Salmon,Regeneration and Planning,Materials For Resale,05/07/2016,34248,64.75
Lancaster City Council,30UH,Salmon,Regeneration and Planning,Materials For Resale,01/08/2016,34683,68.9
Lancaster City Council,30UH,Salmon,Regeneration and Planning,Materials For Resale,01/09/2016,35025,56.92
Lancaster City Council,30UH,Sass & Belle,Environmental Services,Materials For Resale,29/09/2016,35280,25.35
Lancaster City Council,30UH,Scan,Health & Housing,Equipment and Tools - General,19/07/2016,bpc004259,12.83
Lancaster City Council,30UH,SCAN Computers,Resources,Purchase Of Equipment,30/09/2016,jpc000871,105.28
Lancaster City Council,30UH,SCAN Computers,Resources,Purchase Of Equipment,28/07/2016,jpc000820,1108.9
Lancaster City Council,30UH,Scan.co.uk,Resources,Infrastructure - Update & Maintenance,28/07/2016,jpc000823,89.08
Lancaster City Council,30UH,Scan.co.uk,Resources,Infrastructure - Update & Maintenance,28/07/2016,jpc000833,301.36
Lancaster City Council,30UH,Scan.co.uk,Resources,Purchase Of Equipment,01/09/2016,jpc000836,608.12
Lancaster City Council,30UH,Scotforth Dry Cleaners,Environmental Services,Exhibitions & Events,31/08/2016,34894,207.5
Lancaster City Council,30UH,Screwfix,Health & Housing,Equipment and Tools - General,29/09/2016,spc001846,37.49
Lancaster City Council,30UH,Screwfix,Health & Housing,Materials - General,02/09/2016,bpc004440,237.49
Lancaster City Council,30UH,Screwfix,Environmental Services,Clothing & Uniforms,20/07/2016,35339,20.82
Lancaster City Council,30UH,Screwfix,Health & Housing,Equipment and Tools - General,18/07/2016,bpc004254,7.5
Lancaster City Council,30UH,Screwfix,Health & Housing,Equipment and Tools - General,15/08/2016,bpc004377,17.48
Lancaster City Council,30UH,Screwfix,Environmental Services,Equipment and Tools - General,04/07/2016,34224,274.15
Lancaster City Council,30UH,Screwfix,Environmental Services,Equipment and Tools - General,08/08/2016,34617,51.65
Lancaster City Council,30UH,Screwfix,Environmental Services,Equipment and Tools - General,31/08/2016,34893,109.41
Lancaster City Council,30UH,Screwfix,Health & Housing,Materials (Minor Adaptations),09/08/2016,spc001761,29.16
Lancaster City Council,30UH,Screwfix,Health & Housing,Equipment and Tools - General,11/08/2016,bpc004355,35.97
Lancaster City Council,30UH,SHAKESPEARE MARTINEAU,Environmental Services,Other Construction Costs,01/09/2016,34922,480.84
Lancaster City Council,30UH,Shared Earth UK Ltd,Environmental Services,Materials For Resale,29/09/2016,35265,122.99
Lancaster City Council,30UH,Shukan,Health & Housing,Equipment and Tools - General,23/08/2016,spc001775,1.62
Lancaster City Council,30UH,Shukan,Health & Housing,Equipment and Tools - General,27/09/2016,spc001838,1.62
Lancaster City Council,30UH,Shukan,Health & Housing,Mobile Telephones,22/07/2016,spc001722,1.62
Lancaster City Council,30UH,SICO Europe Ltd,Health & Housing,Equipment and Tools - General,19/09/2016,bpc004465,1551.6
Lancaster City Council,30UH,Signs Express,Regeneration and Planning,Equipment and Tools - General,25/08/2016,npc001359,95.28
Lancaster City Council,30UH,Signs Express,Regeneration and Planning,Printing & Stationery,02/09/2016,34960,623.6
Lancaster City Council,30UH,Simon`s Rodents,Environmental Services,Materials - General,28/09/2016,35229,67.2
Lancaster City Council,30UH,Simply French,Health & Housing,Marketing,30/09/2016,bpc004501,40
Lancaster City Council,30UH,Sivertree Jewellery Co Ltd ,Resources,Long Service Awards,09/08/2016,fpc000191,125
Lancaster City Council,30UH,smitcare ltd,Health & Housing,Equipment and Tools - General,21/09/2016,spc001820,400
Lancaster City Council,30UH,Solace Group,Management Team,Conferences & Seminars,26/07/2016,mpc000059,520
Lancaster City Council,30UH,solon security,Health & Housing,Sanctuary Scheme,25/08/2016,spc001781,447.5
Lancaster City Council,30UH,solon security,Health & Housing,Sanctuary Scheme,05/09/2016,spc001793,768.2
Lancaster City Council,30UH,Solopress,Regeneration and Planning,Printing & Stationery,26/08/2016,npc001362,440
Lancaster City Council,30UH,Soports Direct,Health & Housing,Clothing & Uniforms,18/08/2016,bpc004392,0.42
Lancaster City Council,30UH,Spaldings Ltd,Regeneration and Planning,Management Plan Projects,03/08/2016,npc001329,176.8
Lancaster City Council,30UH,Spar,Environmental Services,Materials For Resale,04/07/2016,34208,7.14
Lancaster City Council,30UH,Spar,Environmental Services,Materials For Resale,09/08/2016,34661,7.14
Lancaster City Council,30UH,Spar,Resources,Materials For Resale,31/08/2016,ppc000576,40
Lancaster City Council,30UH,Spar,Resources,Materials For Resale,31/08/2016,ppc000577,80
Lancaster City Council,30UH,Spar,Regeneration and Planning,Petrol & Derv,01/08/2016,npc001322,18.65
Lancaster City Council,30UH,Spar,Regeneration and Planning,Printing & Stationery,01/08/2016,npc001322,10.82
Lancaster City Council,30UH,Speights,Environmental Services,Materials - General,07/07/2016,34290,138.72
Lancaster City Council,30UH,Speights,Environmental Services,Materials - General,31/08/2016,34875,154.63
Lancaster City Council,30UH,Speights,Environmental Services,Materials - General,23/09/2016,35201,51.85
Lancaster City Council,30UH,Speights,Environmental Services,Materials For Resale,04/07/2016,34209,30
Lancaster City Council,30UH,Speights,Environmental Services,Materials For Resale,07/07/2016,34290,756.1
Lancaster City Council,30UH,Speights,Environmental Services,Materials For Resale,31/08/2016,34875,893.24
Lancaster City Council,30UH,Speights,Environmental Services,Materials For Resale,23/09/2016,35201,1298.71
Lancaster City Council,30UH,Sports Direct,Health & Housing,Cleaning Materials,11/09/2016,bpc004445,53.32
Lancaster City Council,30UH,Sports Direct,Health & Housing,Clothing & Uniforms,02/08/2016,bpc004318,0.99
Lancaster City Council,30UH,Sports Direct,Health & Housing,Clothing & Uniforms,26/07/2016,bpc004281,21
Lancaster City Council,30UH,Sports Direct,Health & Housing,Clothing & Uniforms,26/07/2016,bpc004283,30.49
Lancaster City Council,30UH,Sports Direct,Health & Housing,Clothing & Uniforms,18/08/2016,bpc004390,24.98
Lancaster City Council,30UH,Sports Direct,Environmental Services,Equipment and Tools - General,04/07/2016,34225,73.32
Lancaster City Council,30UH,Sports Direct,Health & Housing,Materials For Resale,01/09/2016,bpc004430,20.99
Lancaster City Council,30UH,Sports Direct,Health & Housing,Clothing & Uniforms,11/08/2016,bpc004349,64.15
Lancaster City Council,30UH,St John Ambulance,Regeneration and Planning,Service Training Budget,01/08/2016,npc001324,205
Lancaster City Council,30UH,St Winifreds,Health & Housing,Services - Bed and Breakfast,25/07/2016,spc001725,630
Lancaster City Council,30UH,St Winifreds,Health & Housing,Services - Bed and Breakfast,01/07/2016,spc001692,1020
Lancaster City Council,30UH,St Winifreds,Health & Housing,Services - Bed and Breakfast,04/07/2016,spc001696,210
Lancaster City Council,30UH,St Winifreds,Health & Housing,Services - Bed and Breakfast,08/07/2016,spc001704,840
Lancaster City Council,30UH,St Winifreds,Health & Housing,Services - Bed and Breakfast,11/07/2016,spc001709,180
Lancaster City Council,30UH,St Winifreds,Health & Housing,Services - Bed and Breakfast,19/07/2016,spc001716,420
Lancaster City Council,30UH,St Winifreds,Health & Housing,Services - Bed and Breakfast,29/07/2016,spc001736,270
Lancaster City Council,30UH,St Winifreds,Health & Housing,Services - Bed and Breakfast,04/08/2016,spc001756,90
Lancaster City Council,30UH,St Winifreds,Health & Housing,Services - Bed and Breakfast,12/08/2016,spc001769,300
Lancaster City Council,30UH,St Winifreds,Health & Housing,Services - Bed and Breakfast,22/08/2016,spc001773,330
Lancaster City Council,30UH,St Winifreds,Health & Housing,Services - Bed and Breakfast,31/08/2016,spc001790,300
Lancaster City Council,30UH,St Winifreds,Health & Housing,Services - Bed and Breakfast,01/09/2016,spc001791,90
Lancaster City Council,30UH,St Winifreds,Health & Housing,Services - Bed and Breakfast,02/09/2016,spc001792,180
Lancaster City Council,30UH,St Winifreds,Health & Housing,Services - Bed and Breakfast,09/09/2016,spc001804,360
Lancaster City Council,30UH,St Winifreds,Health & Housing,Services - Bed and Breakfast,23/09/2016,spc001835,180
Lancaster City Council,30UH,St Winifreds,Health & Housing,Services - Bed and Breakfast,30/09/2016,spc001853,4.5
Lancaster City Council,30UH,STA,Health & Housing,Materials For Resale,25/08/2016,bpc004415,20
Lancaster City Council,30UH,STA,Health & Housing,Service Training Budget,25/07/2016,bpc004275,95.5
Lancaster City Council,30UH,STA,Health & Housing,Service Training Budget,08/08/2016,bpc004326,141.67
Lancaster City Council,30UH,STA,Health & Housing,Service Training Budget,08/08/2016,bpc004327,8.33
Lancaster City Council,30UH,STA,Health & Housing,Service Training Budget,12/08/2016,bpc004371,98
Lancaster City Council,30UH,STA,Health & Housing,Service Training Budget,16/08/2016,bpc004384,117.92
Lancaster City Council,30UH,STA,Health & Housing,Service Training Budget,24/08/2016,bpc004408,81.67
Lancaster City Council,30UH,STA,Health & Housing,Service Training Budget,05/09/2016,bpc004442,41
Lancaster City Council,30UH,STA,Health & Housing,Service Training Budget,28/09/2016,bpc004492,28
Lancaster City Council,30UH,STA,Health & Housing,Service Training Budget,30/09/2016,bpc004504,10
Lancaster City Council,30UH,STA,Health & Housing,Service Training Budget,30/09/2016,bpc004505,30
Lancaster City Council,30UH,Stagecoach,Regeneration and Planning,Stagecoach Tickets,12/08/2016,34705,3690.44
Lancaster City Council,30UH,Stagecoach,Regeneration and Planning,Stagecoach Tickets,06/09/2016,35027,673.04
Lancaster City Council,30UH,Stagecoach ,Regeneration and Planning,Stagecoach Tickets,12/07/2016,34323,10198.06
Lancaster City Council,30UH,Stamps4u.co.uk,Regeneration and Planning,Printing & Stationery,17/08/2016,npc001344,27.34
Lancaster City Council,30UH,Staples,Environmental Services,Office Equipment,11/07/2016,34321,34.14
Lancaster City Council,30UH,Star Editions,Regeneration and Planning,Materials For Resale,22/07/2016,34406,250.55
Lancaster City Council,30UH,Station Garage,Regeneration and Planning,Petrol & Derv,24/08/2016,npc001351,38
Lancaster City Council,30UH,Station Garage (Arnside),Regeneration and Planning,Petrol & Derv,26/09/2016,npc001394,47.5
Lancaster City Council,30UH,Stationery 4 Less,Environmental Services,Printing & Stationery,27/07/2016,34466,5.16
Lancaster City Council,30UH,Stephen J Fawcett,Health & Housing,Equipment and Tools - General,21/07/2016,spc001721,5
Lancaster City Council,30UH,Stratford Upon Avon Butterfly ,Environmental Services,Materials For Resale,28/09/2016,35233,158
Lancaster City Council,30UH,Strulch,Environmental Services,Grounds Maintenance - Other,03/08/2016,34586,298
Lancaster City Council,30UH,Strulch,Environmental Services,Grounds Maintenance - Other,29/09/2016,35275,287.5
Lancaster City Council,30UH,Style Your Mobile Ltd,Environmental Services,Equipment and Tools - General,04/07/2016,34194,17.88
Lancaster City Council,30UH,Sutton Gases,Health & Housing,Equipment and Tools - General,30/09/2016,bpc004497,128.57
Lancaster City Council,30UH,Swan Street Exotic Pets,Environmental Services,Materials - General,02/09/2016,34968,69.99
Lancaster City Council,30UH,Swimming Institute,Environmental Services,Service Training Budget,30/09/2016,35282,299
Lancaster City Council,30UH,Talbot Fashions,Environmental Services,Materials For Resale,31/08/2016,34857,178.72
Lancaster City Council,30UH,Talbot Fashions,Health & Housing,Materials For Resale,21/09/2016,bpc004486,66
Lancaster City Council,30UH,Tesco,Health & Housing,Equipment and Tools - General,30/08/2016,bpc004424,24.17
Lancaster City Council,30UH,Tesco,Health & Housing,Equipment and Tools - General,30/08/2016,bpc004425,129.96
Lancaster City Council,30UH,Tesco,Health & Housing,Equipment and Tools - General,30/08/2016,bpc004431,17.23
Lancaster City Council,30UH,Tesco,Resources,Materials For Resale,31/08/2016,ppc000573,3
Lancaster City Council,30UH,Tesco,Resources,Materials For Resale,31/08/2016,ppc000574,3
Lancaster City Council,30UH,Tesco,Resources,Materials For Resale,31/08/2016,ppc000575,3
Lancaster City Council,30UH,Tesco,Resources,Materials For Resale,31/08/2016,ppc000579,3
Lancaster City Council,30UH,Tesco,Health & Housing,Equipment and Tools - General,12/09/2016,bpc004450,63
Lancaster City Council,30UH,The Apron Company,Resources,Clothing & Uniforms,02/09/2016,ppc000585,160
Lancaster City Council,30UH,The Apron Company,Resources,Clothing & Uniforms,22/09/2016,ppc000630,12.5
Lancaster City Council,30UH,The Lothersdale,Regeneration and Planning,Exhibitions & Events - Expenses,25/07/2016,npc001314,169.17
Lancaster City Council,30UH,The Spill Centre,Environmental Services,Equipment and Tools - General,20/07/2016,35340,105.09
Lancaster City Council,30UH,The Trainline,Health & Housing,Use Of Public Tpt - Officers,06/07/2016,spc001700,86.95
Lancaster City Council,30UH,The Trainline,Health & Housing,Use Of Public Tpt - Officers,07/09/2016,spc001800,89.35
Lancaster City Council,30UH,The Trainline,Governance,Use Of Public Tpt - Officers,08/08/2016,lpc000402,55.08
Lancaster City Council,30UH,The Trainline,Health & Housing,Children & Young People,03/08/2016,hpc000421,9.84
Lancaster City Council,30UH,The Trainline,Health & Housing,Children & Young People,30/08/2016,hpc000431,9.84
Lancaster City Council,30UH,The Trainline,Health & Housing,Service Training Budget,30/08/2016,hpc000430,61.71
Lancaster City Council,30UH,The Travellers Choice,Health & Housing,Use Of Public Tpt - Officers,04/07/2016,bpc004251,66.67
Lancaster City Council,30UH,The Uniform & Leisurewear Company Ltd,Health & Housing,Clothing & Uniforms,01/08/2016,spc001750,95.25
Lancaster City Council,30UH,Theatre Tokens,Regeneration and Planning,Concerts - General,08/09/2016,35048,94
Lancaster City Council,30UH,TheWorks,Health & Housing,Equipment and Tools - General,23/08/2016,spc001777,13.5
Lancaster City Council,30UH,Thomas Graham,Environmental Services,Equipment and Tools - General,01/09/2016,34904,9.2
Lancaster City Council,30UH,Thomas Graham,Environmental Services,Equipment and Tools - General,28/09/2016,35237,57.75
Lancaster City Council,30UH,Thomas Graham,Environmental Services,Materials - General,03/08/2016,34587,51.65
Lancaster City Council,30UH,Thos Graham,Regeneration and Planning,Equipment and Tools - General,03/08/2016,npc001328,156.87
Lancaster City Council,30UH,Timpson Ltd,Health & Housing,Equipment and Tools - General,29/07/2016,bpc004312,23.33
Lancaster City Council,30UH,Timpson Ltd,Resources,R & M - Buildings,04/08/2016,ppc000551,6.25
Lancaster City Council,30UH,Timpson Ltd,Health & Housing,Equipment and Tools - General,30/08/2016,bpc004423,20
Lancaster City Council,30UH,Timpson Ltd,Health & Housing,Equipment and Tools - General,12/09/2016,bpc004452,32.5
Lancaster City Council,30UH,Timpson Ltd,Resources,R & M - Buildings,13/09/2016,ppc000608,8.33
Lancaster City Council,30UH,"TK Maxx, Lancaster",Resources,Equipment and Tools - General,22/09/2016,ppc000629,12.52
Lancaster City Council,30UH,tool station,Health & Housing,Equipment and Tools - General,21/09/2016,spc001816,112.5
Lancaster City Council,30UH,tool station,Health & Housing,Equipment and Tools - General,21/09/2016,spc001817,112.5
Lancaster City Council,30UH,tool station,Health & Housing,Materials (Minor Adaptations),29/09/2016,spc001847,-112.5
Lancaster City Council,30UH,tool station,Health & Housing,Materials (Minor Adaptations),29/09/2016,spc001848,-67.5
Lancaster City Council,30UH,tool station,Health & Housing,Materials (Minor Adaptations),29/09/2016,spc001849,-45
Lancaster City Council,30UH,TP Express,Governance,Service Training Budget,06/09/2016,lpc000405,119
Lancaster City Council,30UH,TP Express,Regeneration and Planning,Use Of Public Tpt - Officers,30/09/2016,npc001410,5
Lancaster City Council,30UH,Tradition Giftware Ltd,Regeneration and Planning,Materials For Resale,01/08/2016,34558,128.32
Lancaster City Council,30UH,Tradition Giftware Ltd,Regeneration and Planning,Materials For Resale,01/09/2016,34925,12.18
Lancaster City Council,30UH,Travellers Choice,Regeneration and Planning,Coach Tours,01/09/2016,35022,740.65
Lancaster City Council,30UH,Travis Perkins,Environmental Services,Equipment and Tools - General,04/07/2016,34201,15
Lancaster City Council,30UH,Travis Perkins,Environmental Services,Equipment and Tools - General,04/07/2016,34226,16.42
Lancaster City Council,30UH,Travis Perkins,Environmental Services,Equipment and Tools - General,31/08/2016,34901,5.76
Lancaster City Council,30UH,Travis Perkins,Environmental Services,Equipment and Tools - General,31/08/2016,34902,57.04
Lancaster City Council,30UH,Travis Perkins,Environmental Services,Materials - General,04/07/2016,34203,47.52
Lancaster City Council,30UH,Travis Perkins,Environmental Services,Materials - General,04/07/2016,34204,15.8
Lancaster City Council,30UH,Travis Perkins,Environmental Services,Materials - General,31/08/2016,34903,19.7
Lancaster City Council,30UH,Travis Perkins,Environmental Services,Materials - General,28/09/2016,35236,11.26
Lancaster City Council,30UH,Travis Perkins,Environmental Services,Materials - General,29/09/2016,35273,36.91
Lancaster City Council,30UH,Travis Perkins,Environmental Services,Materials - General,29/09/2016,35276,95.6
Lancaster City Council,30UH,Travis Perkins,Health & Housing,Materials (Minor Adaptations),21/09/2016,spc001823,20.48
Lancaster City Council,30UH,Travis Perkins,Health & Housing,Materials (Minor Adaptations),21/09/2016,spc001824,72.72
Lancaster City Council,30UH,Travis Perkins,Health & Housing,Materials (Minor Adaptations),23/09/2016,spc001832,233.67
Lancaster City Council,30UH,Travis Perkins,Health & Housing,Materials (Minor Adaptations),23/09/2016,spc001833,6.16
Lancaster City Council,30UH,Travis Perkins,Health & Housing,Materials (Minor Adaptations),29/09/2016,spc001843,46.87
Lancaster City Council,30UH,Travis Perkins,Health & Housing,Materials (Minor Adaptations),29/09/2016,spc001844,8
Lancaster City Council,30UH,Travis Perkins,Health & Housing,Materials - General,02/09/2016,bpc004439,50.2
Lancaster City Council,30UH,Trickys Cornwall.co.uk,Health & Housing,Subsistence,28/09/2016,spc001840,567.5
Lancaster City Council,30UH,TV Licencing,Health & Housing,Miscellaneous Licences,19/07/2016,bpc004261,145.5
Lancaster City Council,30UH,Tyre Force,Regeneration and Planning,Repair & Mtce Of Vehicles,24/08/2016,npc001352,156
Lancaster City Council,30UH,UK Paper Rolls,Regeneration and Planning,Printing & Stationery,15/09/2016,35106,27
Lancaster City Council,30UH,UK Paper Rolls,Environmental Services,Printing & Stationery,04/07/2016,34229,48
Lancaster City Council,30UH,UK POS,Health & Housing,Printing & Stationery,26/08/2016,bpc004421,81.7
Lancaster City Council,30UH,UK POS,Health & Housing,Printing & Stationery,26/08/2016,bpc004422,178.98
Lancaster City Council,30UH,UKLPG,Health & Housing,Equipment and Tools - General,22/09/2016,spc001825,24
Lancaster City Council,30UH,Ultimate Phone Shop,Health & Housing,Corporate Safety,10/08/2016,spc001763,2.61
Lancaster City Council,30UH,Uniform Leisurewear,Health & Housing,Clothing & Uniforms,12/08/2016,bpc004360,35.9
Lancaster City Council,30UH,United Utilities,Health & Housing,Water Services,26/07/2016,bpc004292,124.91
Lancaster City Council,30UH,United Utilities,Health & Housing,Water Services,22/08/2016,bpc004404,124.91
Lancaster City Council,30UH,United Utilities,Health & Housing,Water Services,20/09/2016,bpc004471,124.91
Lancaster City Council,30UH,United Utilities,Environmental Services,Water Services,04/07/2016,34228,129.48
Lancaster City Council,30UH,V Catlow & Son Ltd,Health & Housing,Equipment and Tools - General,18/08/2016,bpc004396,112.5
Lancaster City Council,30UH,Versapak Int Ltd,Health & Housing,Equipment and Tools - General,01/08/2016,spc001749,78.42
Lancaster City Council,30UH,Veterinary Health Centre,Environmental Services,Services - Vets,04/07/2016,34221,2089.39
Lancaster City Council,30UH,Veterinary Health Centre,Environmental Services,Services - Vets,31/08/2016,34858,134.92
Lancaster City Council,30UH,Viking,Environmental Services,Equipment and Tools - General,04/07/2016,34234,74.49
Lancaster City Council,30UH,Viking,Regeneration and Planning,Office Equipment,13/09/2016,35221,89.39
Lancaster City Council,30UH,Viking,Environmental Services,Office Equipment,30/09/2016,35304,32.89
Lancaster City Council,30UH,Viking,Regeneration and Planning,Printing & Stationery,19/08/2016,34761,64.97
Lancaster City Council,30UH,Viking,Regeneration and Planning,Printing & Stationery,15/09/2016,35104,59.95
Lancaster City Council,30UH,Viking,Environmental Services,Printing & Stationery,04/07/2016,34240,63.44
Lancaster City Council,30UH,Viking,Environmental Services,Printing & Stationery,03/08/2016,34589,42.33
Lancaster City Council,30UH,Viking,Environmental Services,Printing & Stationery,31/08/2016,34895,104.12
Lancaster City Council,30UH,Viking,Environmental Services,Printing & Stationery,23/09/2016,35199,49.8
Lancaster City Council,30UH,Viking,Environmental Services,Printing & Stationery,23/09/2016,35205,60.54
Lancaster City Council,30UH,Viking,Regeneration and Planning,Printing & Stationery,15/07/2016,npc001306,79.99
Lancaster City Council,30UH,Virgin Trains,Resources,Services - Consultants,28/07/2016,jpc000834,8.7
Lancaster City Council,30UH,Virgin Trains,Resources,Use Of Public Tpt - Officers,07/07/2016,fpc000186,24.9
Lancaster City Council,30UH,Virgin Trains,Resources,Use Of Public Tpt - Officers,03/08/2016,fpc000188,53.8
Lancaster City Council,30UH,Virgin Trains,Resources,Use Of Public Tpt - Officers,06/09/2016,fpc000195,208.2
Lancaster City Council,30UH,Virgin Trains,Resources,Use Of Public Tpt - Officers,28/07/2016,jpc000821,91.5
Lancaster City Council,30UH,Virgin Trains,Health & Housing,Use Of Public Tpt - Officers,22/09/2016,spc001827,54.5
Lancaster City Council,30UH,Virgin Trains,Health & Housing,Children & Young People,27/09/2016,hpc000435,12.42
Lancaster City Council,30UH,Virgin Trains,Health & Housing,Materials - General,29/07/2016,spc001731,396.75
Lancaster City Council,30UH,Virgin Trains,Governance,Members Expenses - Travel,31/08/2016,dpc000430,92.5
Lancaster City Council,30UH,Virgin Trains,Health & Housing,Service Training Budget,12/09/2016,bpc004453,460.2
Lancaster City Council,30UH,Virgin Trains,Health & Housing,Service Training Budget,12/09/2016,bpc004456,111.8
Lancaster City Council,30UH,Virgin Trains,Health & Housing,Service Training Budget,21/09/2016,bpc004475,-65.7
Lancaster City Council,30UH,Virgin Trains,Health & Housing,Service Training Budget,07/07/2016,hpc000416,14.58
Lancaster City Council,30UH,Virgin Trains,Governance,Service Training Budget,07/09/2016,dpc000433,52.6
Lancaster City Council,30UH,Virgin Trains,Governance,Service Training Budget,30/09/2016,dpc000434,8.7
Lancaster City Council,30UH,Virgin Trains,Health & Housing,Subsistence,28/09/2016,spc001841,48.1
Lancaster City Council,30UH,Virgin Trains,Governance,Use Of Public Tpt - Officers,06/07/2016,dpc000421,57.9
Lancaster City Council,30UH,Virgin Trains,Governance,Use Of Public Tpt - Officers,15/07/2016,dpc000423,21.6
Lancaster City Council,30UH,Virgin Trains,Governance,Use Of Public Tpt - Officers,07/09/2016,dpc000432,8.5
Lancaster City Council,30UH,Virgin Trains,Resources,Use Of Public Tpt - Officers,14/09/2016,fpc000196,21.5
Lancaster City Council,30UH,Virgin Trains,Health & Housing,Use Of Public Tpt - Officers,26/07/2016,bpc004282,14.9
Lancaster City Council,30UH,Virgin Trains,Health & Housing,Use Of Public Tpt - Officers,26/07/2016,bpc004285,157.4
Lancaster City Council,30UH,Virgin Trains,Health & Housing,Use Of Public Tpt - Officers,26/07/2016,bpc004293,104
Lancaster City Council,30UH,Virgin Trains,Governance,Use Of Public Tpt - Officers,07/09/2016,dpc000431,55
Lancaster City Council,30UH,Virgin Trains,Resources,Use Of Public Tpt - Officers,01/09/2016,fpc000192,248
Lancaster City Council,30UH,Virgin Trains,Health & Housing,Use Of Public Tpt - Officers,10/08/2016,spc001764,91.5
Lancaster City Council,30UH,Virgin Trains,Health & Housing,Use Of Public Tpt - Officers,10/08/2016,spc001765,-71.5
Lancaster City Council,30UH,Virgin Trains,Health & Housing,Use Of Public Tpt - Officers,10/08/2016,spc001766,229.85
Lancaster City Council,30UH,Virgin Trains,Health & Housing,Use Of Public Tpt - Officers,07/09/2016,spc001795,103.6
Lancaster City Council,30UH,Virgin Trains,Resources,Use Of Public Tpt - Officers,30/09/2016,jpc000872,72.85
Lancaster City Council,30UH,Virgin Trains,Management Team,Use Of Public Tpt - Officers,01/08/2016,mpc000060,92.6
Lancaster City Council,30UH,Virgin Trains,Management Team,Use Of Public Tpt - Officers,14/09/2016,mpc000066,7.5
Lancaster City Council,30UH,Virgin Trains,Management Team,Use Of Public Tpt - Officers,20/09/2016,mpc000068,41.6
Lancaster City Council,30UH,Virgin Trains,Resources,Use Of Public Tpt - Officers,16/09/2016,ppc000615,39.8
Lancaster City Council,30UH,Virgin Trains,Regeneration and Planning,Use Of Public Tpt - Officers,04/07/2016,npc001288,60.8
Lancaster City Council,30UH,Virgin Trains,Regeneration and Planning,Use Of Public Tpt - Officers,04/08/2016,npc001331,255.7
Lancaster City Council,30UH,Virgin Trains,Regeneration and Planning,Use Of Public Tpt - Officers,30/09/2016,npc001409,61.25
Lancaster City Council,30UH,Virgin Trains,Health & Housing,Service Training Budget,11/07/2016,spc001708,12.2
Lancaster City Council,30UH,Virgin Trains,Health & Housing,Service Training Budget,14/07/2016,spc001711,18.7
Lancaster City Council,30UH,Visit England,Regeneration and Planning,Marketing,15/07/2016,npc001302,359
Lancaster City Council,30UH,Vitrgin Trains,Governance,Service Training Budget,17/08/2016,dpc000429,17.8
Lancaster City Council,30UH,Vodafone,Resources,Mobile Telephones,01/09/2016,jpc000864,69
Lancaster City Council,30UH,Waterstones,Resources,Printing & Stationery,09/09/2016,ppc000605,14.62
Lancaster City Council,30UH,Waterstones,Resources,Equipment and Tools - General,15/09/2016,ppc000614,16.04
Lancaster City Council,30UH,Waterstones,Resources,Equipment and Tools - General,22/09/2016,ppc000628,5
Lancaster City Council,30UH,Waterstones,Resources,Equipment and Tools - General,22/09/2016,ppc000634,16.67
Lancaster City Council,30UH,Webex,Resources,Internet Provision,08/08/2016,jpc000835,143.6
Lancaster City Council,30UH,West Coast Trains,Health & Housing,Equipment and Tools - General,07/09/2016,spc001797,10
Lancaster City Council,30UH,West Coast Trains,Health & Housing,Use Of Public Tpt - Officers,01/07/2016,bpc004243,3.5
Lancaster City Council,30UH,West Coast Trains,Health & Housing,Use Of Public Tpt - Officers,01/07/2016,bpc004244,8.9
Lancaster City Council,30UH,West Coast Trains,Health & Housing,Use Of Public Tpt - Officers,03/08/2016,bpc004323,3.5
Lancaster City Council,30UH,West Coast Trains,Regeneration and Planning,Use Of Public Tpt - Officers,07/07/2016,npc001297,52.8
Lancaster City Council,30UH,West Coast Trains,Regeneration and Planning,Subsistence,07/07/2016,npc001298,25
Lancaster City Council,30UH,Whats On,Regeneration and Planning,Miscellaneous Advertising,18/08/2016,npc001348,200
Lancaster City Council,30UH,Whirlpool UK Appliances Ltd,Resources,Equipment and Tools - General,30/08/2016,ppc000563,21.98
Lancaster City Council,30UH,WICKES,Health & Housing,Equipment and Tools - General,18/07/2016,bpc004258,44.52
Lancaster City Council,30UH,Wilko,Resources,Catering Provisions,06/09/2016,ppc000598,5
Lancaster City Council,30UH,Wilko,Resources,Clothing & Uniforms,19/07/2016,ppc000540,8.75
Lancaster City Council,30UH,Wilko,Governance,Printing & Stationery,06/09/2016,lpc000407,2.6
Lancaster City Council,30UH,Wilko,Health & Housing,Equipment Funded by Reserves,22/09/2016,hpc000433,3.75
Lancaster City Council,30UH,Wilko,Governance,Office Equipment,08/07/2016,dpc000422,6
Lancaster City Council,30UH,Wilko,Health & Housing,Other Cleaning,28/07/2016,hpc000419,3.33
Lancaster City Council,30UH,Wilko,Governance,Printing & Stationery,30/09/2016,lpc000414,8.4
Lancaster City Council,30UH,Wilko,Governance,Printing & Stationery,30/09/2016,lpc000418,-2.6
Lancaster City Council,30UH,Wilko,Resources,Cleaning Materials,04/08/2016,ppc000552,6.67
Lancaster City Council,30UH,Wilko,Resources,Cleaning Materials,21/09/2016,ppc000621,18.83
Lancaster City Council,30UH,Wilko,Resources,Equipment and Tools - General,21/09/2016,ppc000622,2.71
Lancaster City Council,30UH,Wilko,Resources,Equipment and Tools - General,21/09/2016,ppc000623,24.36
Lancaster City Council,30UH,Wilko,Resources,Equipment and Tools - General,22/09/2016,ppc000625,3.71
Lancaster City Council,30UH,Wilko,Resources,Equipment and Tools - General,22/09/2016,ppc000632,9.17
Lancaster City Council,30UH,Wilko,Resources,Equipment and Tools - General,22/09/2016,ppc000633,5.64
Lancaster City Council,30UH,Wilko,Health & Housing,Services - General,16/08/2016,bpc004385,13.2
Lancaster City Council,30UH,Wilko,Governance,Printing & Stationery,22/07/2016,lpc000397,5
Lancaster City Council,30UH,www.sound-dynamics.co.uk,Health & Housing,Equipment and Tools - General,21/09/2016,bpc004474,466.9
Lancaster City Council,30UH,Yellow Publications,Regeneration and Planning,Materials For Resale,01/08/2016,34557,53.2
Lancaster City Council,30UH,YESS,Health & Housing,Equipment and Tools - General,13/09/2016,bpc004460,6.58
Lancaster City Council,30UH,Yoga Matters Ltd,Health & Housing,Equipment and Tools - General,08/08/2016,bpc004333,373.33
